Workbook

Sheet Elolap

Sheet Tamogatastartalom
L1: =IF(SUM(M7:M126)<C24,"A folyósítások összege kevesebb, mint a hitelösszeg","A folyósítások összege több, mint a hitelösszeg") -> A folyósítások összege kevesebb, mint a hitelösszeg | T1: =IF(SUM(U7:U126)<C24,"A törlesztések összege kevesebb, mint a hitelösszeg","A törlesztések összege több, mint a hitelösszeg") -> A törlesztések összege kevesebb, mint a hitelösszeg
B3: Ügyfél neve: | F3: Hitelösszeg (EUR) | I3: =IF(C9="HUF",C24/C10,C24) -> 277777.7778 | L3: Egyedi folyósítás dátuma | M3: Folyósítás összege | T3: Egyedi törlesztés dátuma | U3: Tőkeamortizáció egyedi törlesztés esetén | V3: periódusközi kamatszámítás | AA3: maradék kamatszámítás | AK3: Piaci konstrukció | AN3: Támogatott konstruckió | AR3: Támogatástartalom | AU3: Támogatástartalom + egyéb kedvezmények
D4: -0.04 | F4: =IF(tenylegestt=0,"Az ügylet nem finanszírozható","Ténylegesen felvett hitel támogatástartalma (EUR)") -> Ténylegesen felvett hitel támogatástartalma (EUR) | I4: =IF(C9="HUF",AR5/C10,AR5) -> 167447.7273 | P4: kamat | Q4: támogatott | V4: dátumtól | W4: tőke | X4: kamat | Y4: támogatott | AA4: dátumtól | AB4: amort | AC4: tőke | AD4: maradék | AE4: t maradék | AI4: Periodus | AJ4: Dátum | AK4: Tőke | AL4: Tőkeamt. | AM4: Kamatfiz. | AN4: Tőke | AO4: Tőkeamt. | AP4: Kamatfiz. | AR4: FV | AS4: PV
B5: Pénzügyi intézmény neve refinanszírozás esetén: | F5: Hitelösszeg (HUF) | I5: =I3*C10 -> 100000000 | P5: =SUM(P7:P126) -> -11938356.16 | Q5: =SUM(Q7:Q126) -> -1438356.164 | X5: =SUM(X7:X126) -> 0 | Y5: =SUM(Y7:Y126) -> 0 | AD5: =SUM(AD7:AD126) -> -68538877.96 | AE5: =SUM(AE7:AE126) -> -8257696.139 | AK5: =+AK7 -> 100000000 | AL5: =SUM(AL7:AL126) -> -100000000 | AM5: =SUM(AM7:AM126) -> -68538877.96 | AN5: =+AN7 -> 100000000 | AO5: =SUM(AO7:AO126) -> -100000000 | AP5: =SUM(AP7:AP126) -> -8257696.139 | AR5: =SUM(AR7:AR126) -> 60281181.82 | AS5: =SUM(AS7:AS126) -> 53541098.63 | AU5: =AS5 -> 53541098.63
J6: Törlesztésiidőszak vége? | AI6: 0 | AJ6: =MAX(C26,MIN(L7:L126)) -> 2020-05-30
F7: COVID Közlemény 3.1 alapján megítélt támogatásokon felül igénybe vehető szabad keret | J7: =AI7>$D$15 -> FALSE | N7: =C26 -> 2020-05-30 | O7: =IF(ISBLANK(L7),C24,0) -> 100000000 | P7: =IF(AND(ISBLANK(L6),AH7<>1),0,IFERROR(-O7*piacikamat/365*(IF(ISBLANK(L7),$C$27,L7)-N7),"")) -> -11938356.16 | Q7: =IF(AND(ISBLANK(L6),AH7<>1),0,IFERROR(-O7*tenylegeskamat/365*(IF(ISBLANK(L7),$C$27,L7)-N7),"")) -> -1438356.164 | R7: =IFERROR(IF(ISBLANK(L7),$C$27,L7)-N7,"") -> 350 | V7: =IF(ISNA(MAX(T6,INDEX(AJ$6:AJ$126,MATCH(T7-1,AJ$6:AJ$126,1)))),"",MAX(T6,INDEX(AJ$6:AJ$126,MATCH(T7-1,AJ$6:AJ$126,1)))) ->  | W7: =IF(ISNA(MIN(IF(OR(ISBLANK(W6),W6=""),INDEX(AK$7:AK$126,MATCH(T7,AJ$7:AJ$126,1)),W6-U6),INDEX(AK$7:AK$126,MATCH(T7,AJ$7:AJ$126,1)))),"",MIN(IF(OR(ISBLANK(W6),W6=""),INDEX(AK$7:AK$126,MATCH(T7,AJ$7:AJ$126,1)),W6-U6),INDEX(AK$7:AK$126,MATCH(T7,AJ$7:AJ$126,1)))) ->  | X7: =IFERROR(-W7*piacikamat/365*(T7-V7),"") ->  | Y7: =IFERROR(-W7*tenylegeskamat/365*(T7-V7),"") ->  | Z7: =IFERROR(T7-V7,"") ->  | AA7: =MAX(AJ6,IF(ISNA(INDEX(T$7:T$126,MATCH(AJ7,T$7:T$126,1))),0,INDEX(T$7:T$126,MATCH(AJ7,T$7:T$126,1)))) -> 2020-05-30 | AB7: =IF(ISNA(INDEX(U$7:U$126,MATCH(AJ7,T$7:T$126,1))),0,INDEX(U$7:U$126,MATCH(AJ7,T$7:T$126,1))) -> 0 | AC7: =IF(ISNA(INDEX(W$7:W$126,MATCH(AJ7,T$7:T$126,1))),AK7,INDEX(W$7:W$126,MATCH(AJ7,T$7:T$126,1))) -> 100000000 | AD7: =IFERROR(-(AC7-AB7)*piacikamat/365*(AJ7-AA7),0) -> -11938356.16 | AE7: =IFERROR(-(AC7-AB7)*tenylegeskamat/365*(AJ7-AA7),0) -> -1438356.164 | AF7: =IFERROR(AJ7-AA7,"") -> 350 | AH7: 1 | AI7: =+IF(C28-C27<>0,1,"") -> 1 | AJ7: =C27 -> 2021-05-15 | AK7: =IF(+C24<>0,C24,IF(AI7>0,C24*J7,"")) -> 100000000 | AL7: =IF(torlesztes="Egyedi",-SUMIFS(U$7:U$126,T$7:T$126,">"&AJ6,T$7:T$126,"<="&AJ7),IFERROR(IF(torlesztes="Egyenlő tőke",IF(COUNT($AK$7:AK7)>$D$15,"",-$AK$5/$D$15),0),"")) -> -909090.9091 | AM7: =SUM(P7:P126) -> -11938356.16 | AN7: =+AK7 -> 100000000 | AO7: =IF(torlesztes="Egyedi",-SUMIFS(U$7:U$126,T$7:T$126,">"&AJ6,T$7:T$126,"<="&AJ7),IFERROR(IF(torlesztes="Egyenlő tőke",IF(COUNT($AN$7:AN7)>$D$15,"",-$AK$5/$D$15),0),"")) -> -909090.9091 | AP7: =SUM(Q7:Q126) -> -1438356.164 | AR7: =IFERROR(MAX((ABS(AM7)-ABS(AP7)),0),"") -> 10500000 | AS7: =IFERROR(AR7/(1+($C$11+1%)/365*(AJ7-C25)),"") -> 10149830.84 | AT7: =IFERROR(AJ7-AJ6,"") -> 350
B8: PIACI KAMAT MEGHATÁROZÁSA | G8: Általános szabály | H8: Mezőgazdasági szabály | I8: Halászati szabály | J8: =AI8>$D$15 -> FALSE | N8: =IF(ISBLANK(L7),"",L7) ->  | O8: =IF(ISBLANK(L7),0,M7+O7) -> 0 | P8: 0 | Q8: 0 | V8: =IF(ISNA(MAX(T7,INDEX(AJ$6:AJ$126,MATCH(T8-1,AJ$6:AJ$126,1)))),"",MAX(T7,INDEX(AJ$6:AJ$126,MATCH(T8-1,AJ$6:AJ$126,1)))) ->  | W8: =IF(ISNA(MIN(IF(OR(ISBLANK(W7),W7=""),INDEX(AK$7:AK$126,MATCH(T8,AJ$7:AJ$126,1)),W7-U7),INDEX(AK$7:AK$126,MATCH(T8,AJ$7:AJ$126,1)))),"",MIN(IF(OR(ISBLANK(W7),W7=""),INDEX(AK$7:AK$126,MATCH(T8,AJ$7:AJ$126,1)),W7-U7),INDEX(AK$7:AK$126,MATCH(T8,AJ$7:AJ$126,1)))) ->  | AA8: =MAX(AJ7,IF(ISNA(INDEX(T$7:T$126,MATCH(AJ8,T$7:T$126,1))),0,INDEX(T$7:T$126,MATCH(AJ8,T$7:T$126,1)))) -> 2021-05-15 | AB8: =IF(ISNA(INDEX(U$7:U$126,MATCH(AJ8,T$7:T$126,1))),0,INDEX(U$7:U$126,MATCH(AJ8,T$7:T$126,1))) -> 0 | AC8: =IF(ISNA(INDEX(W$7:W$126,MATCH(AJ8,T$7:T$126,1))),AK8,INDEX(W$7:W$126,MATCH(AJ8,T$7:T$126,1))) -> 99090909.09 | AD8: -1047784.558 | AE8: -126239.1034 | AF8: 31 | AH8: 2 | AI8: =IF(COUNT(AJ8)=1,AI7+1,"") -> 2 | AJ8: =IF(OR(AJ7=$C$28,AJ7=""),"",IFERROR(IF(EDATE($C$27,(AH8-1)*12/$D$19)<=$C$28,EDATE($C$27,(AH8-1)*12/$D$19),$C$28),"")) -> 2021-06-15 | AK8: =+IF(COUNT(AK7)<>0,SUM(AK7:AL7)*(1-J8),"") -> 99090909.09 | AL8: =IF(torlesztes="Egyedi",-SUMIFS(U$7:U$126,T$7:T$126,">"&AJ7,T$7:T$126,"<="&AJ8),IFERROR(IF(torlesztes="Egyenlő tőke",IF(COUNT($AK$7:AK8)>$D$15,"",-$AK$5/$D$15),0),"")) -> -909090.9091 | AM8: =IF(torlesztes="Egyedi",SUMIFS(X$7:X$126,T$7:T$126,">"&AJ7,T$7:T$126,"<="&AJ8)+AD8,IFERROR(-AK8*piacikamat/365*(AJ8-AJ7),"")) -> -1047784.558 | AN8: =+IF(COUNT(AN7)<>0,SUM(AN7:AO7)*(1-J8),"") -> 99090909.09 | AO8: =IF(torlesztes="Egyedi",-SUMIFS(U$7:U$126,T$7:T$126,">"&AJ7,T$7:T$126,"<="&AJ8),IFERROR(IF(torlesztes="Egyenlő tőke",IF(COUNT($AN$7:AN8)>$D$15,"",-$AK$5/$D$15),0),"")) -> -909090.9091 | AP8: =IF(torlesztes="Egyedi",SUMIFS(Y$7:Y$126,T$7:T$126,">"&AJ7,T$7:T$126,"<="&AJ8)+AE8,IFERROR(-AN8*tenylegeskamat/365*(AJ8-AJ7),"")) -> -126239.1034 | AR8: =IFERROR(MAX((ABS(AM8)-ABS(AP8)),0),"") -> 921545.4545 | AS8: =IFERROR(AR8/POWER(1+($C$11+1%)/$D$19,AI8-1)/(1+($C$11+1%)/365*($AJ$7-$C$25)),"") -> 888258.6821 | AT8: 31
B9: Hitel devizaneme | C9: HUF | D9: Makrohoz kellenek (ne töröld ki!): | J9: FALSE | N9: =IF(ISBLANK(L8),"",L8) ->  | O9: =IF(ISBLANK(L8),0,M8+O8) -> 0 | P9: 0 | Q9: 0 | AA9: 2021-06-15 | AB9: 0 | AC9: 98181818.18 | AD9: -1004682.441 | AE9: -121046.0772 | AF9: 30 | AH9: 3 | AI9: =IF(COUNT(AJ9)=1,AI8+1,"") -> 3 | AJ9: 2021-07-15 | AK9: 98181818.18 | AL9: =IF(torlesztes="Egyedi",-SUMIFS(U$7:U$126,T$7:T$126,">"&AJ8,T$7:T$126,"<="&AJ9),IFERROR(IF(torlesztes="Egyenlő tőke",IF(COUNT($AK$7:AK9)>$D$15,"",-$AK$5/$D$15),0),"")) -> -909090.9091 | AM9: -1004682.441 | AN9: 98181818.18 | AO9: =IF(torlesztes="Egyedi",-SUMIFS(U$7:U$126,T$7:T$126,">"&AJ8,T$7:T$126,"<="&AJ9),IFERROR(IF(torlesztes="Egyenlő tőke",IF(COUNT($AN$7:AN9)>$D$15,"",-$AK$5/$D$15),0),"")) -> -909090.9091 | AP9: -121046.0772 | AR9: 883636.3636 | AS9: 849277.2182 | AT9: 30
B10: HUF/EUR árfolyam | C10: 360 | D10: =+C17/D19 -> 0.010375 | F10: Maximális hitelösszeghez tartozó támogatástartalom (EUR) | G10: =IF(2300000-C40-C41-C42-C45-C46-C47-C48-C49-C50<=0,"Nem jogosult",2300000-C40-C41-C42-C45-C46-C47-C48-C49-C50) -> 2300000 | H10: =IF(mezogazdkizarok=0,"Nem releváns",IF(MIN(290000-C40-C45-C49,2300000-C40-C41-C42-C45-C46-C47-C48-C49-C50,345000-C40-C41-C45-C46-C49-C50)<=0,"Nem jogosult",MIN(290000-C40-C45-C49,2300000-C40-C41-C42-C45-C46-C47-C48-C49-C50,345000-C40-C41-C45-C46-C49-C50))) -> Nem releváns | I10: =IF(halaszatikizarok=0,"Nem releváns",IF(MIN(345000-C41-C46-C50,2300000-C40-C41-C42-C45-C46-C47-C48-C49-C50,345000-C40-C41-C45-C46-C49-C50)<=0,"Nem jogosult",MIN(345000-C41-C46-C50,2300000-C40-C41-C42-C45-C46-C47-C48-C49-C50,345000-C40-C41-C45-C46-C49-C50))) -> Nem releváns | J10: FALSE | O10: 0 | P10: 0 | Q10: 0 | AA10: 2021-07-15 | AB10: 0 | AC10: 97272727.27 | AD10: -1028559.153 | AE10: -123922.7895 | AF10: 31 | AH10: 4 | AI10: =IF(COUNT(AJ10)=1,AI9+1,"") -> 4 | AJ10: 2021-08-15 | AK10: 97272727.27 | AL10: =IF(torlesztes="Egyedi",-SUMIFS(U$7:U$126,T$7:T$126,">"&AJ9,T$7:T$126,"<="&AJ10),IFERROR(IF(torlesztes="Egyenlő tőke",IF(COUNT($AK$7:AK10)>$D$15,"",-$AK$5/$D$15),0),"")) -> -909090.9091 | AM10: -1028559.153 | AN10: 97272727.27 | AO10: =IF(torlesztes="Egyedi",-SUMIFS(U$7:U$126,T$7:T$126,">"&AJ9,T$7:T$126,"<="&AJ10),IFERROR(IF(torlesztes="Egyenlő tőke",IF(COUNT($AN$7:AN10)>$D$15,"",-$AK$5/$D$15),0),"")) -> -909090.9091 | AP10: -123922.7895 | AR10: 904636.3636 | AS10: 866968.1249 | AT10: 31
B11: Referencia alapkamat - Kérjük adja meg a hatályos, devizanem szerinti értéket! | C11: 0.0245 | J11: FALSE | O11: 0 | P11: 0 | Q11: 0 | AA11: 2021-08-15 | AB11: 0 | AC11: 96363636.36 | AD11: -1018946.451 | AE11: -122764.6326 | AF11: 31 | AH11: 5 | AI11: 5 | AJ11: 2021-09-15 | AK11: 96363636.36 | AL11: =IF(torlesztes="Egyedi",-SUMIFS(U$7:U$126,T$7:T$126,">"&AJ10,T$7:T$126,"<="&AJ11),IFERROR(IF(torlesztes="Egyenlő tőke",IF(COUNT($AK$7:AK11)>$D$15,"",-$AK$5/$D$15),0),"")) -> -909090.9091 | AM11: -1018946.451 | AN11: 96363636.36 | AO11: =IF(torlesztes="Egyedi",-SUMIFS(U$7:U$126,T$7:T$126,">"&AJ10,T$7:T$126,"<="&AJ11),IFERROR(IF(torlesztes="Egyenlő tőke",IF(COUNT($AN$7:AN11)>$D$15,"",-$AK$5/$D$15),0),"")) -> -909090.9091 | AP11: -122764.6326 | AR11: 896181.8182 | AS11: 856403.4592 | AT11: 31
B12: Van hitelfelvevői múltja vagy mérleg alapú hitelminősítése a hitelfelvevőnek? | C12: Van | D12: 0.0001 | F12: Teljes(kumulált) támogatás intenzítása | J12: FALSE | O12: 0 | P12: 0 | Q12: 0 | AA12: 2021-09-15 | AB12: 0 | AC12: 95454545.45 | AD12: -976774.5953 | AE12: -117683.6862 | AF12: 30 | AH12: 6 | AI12: 6 | AJ12: 2021-10-15 | AK12: 95454545.45 | AL12: =IF(torlesztes="Egyedi",-SUMIFS(U$7:U$126,T$7:T$126,">"&AJ11,T$7:T$126,"<="&AJ12),IFERROR(IF(torlesztes="Egyenlő tőke",IF(COUNT($AK$7:AK12)>$D$15,"",-$AK$5/$D$15),0),"")) -> -909090.9091 | AM12: -976774.5953 | AN12: 95454545.45 | AO12: =IF(torlesztes="Egyedi",-SUMIFS(U$7:U$126,T$7:T$126,">"&AJ11,T$7:T$126,"<="&AJ12),IFERROR(IF(torlesztes="Egyenlő tőke",IF(COUNT($AN$7:AN12)>$D$15,"",-$AK$5/$D$15),0),"")) -> -909090.9091 | AP12: -117683.6862 | AR12: 859090.9091 | AS12: 818605.3946 | AT12: 30
B13: Cégbesorolás | F13: Beruházás elszámolható költsége (EUR) | G13: =C23/IF(C9<>"EUR",arfolyam,1) -> 388888.8889 | J13: FALSE | O13: 0 | P13: 0 | Q13: 0 | AA13: 2021-10-15 | AB13: 0 | AC13: 94545454.55 | AD13: -999721.0461 | AE13: -120448.3188 | AF13: 31 | AH13: 7 | AI13: 7 | AJ13: 2021-11-15 | AK13: 94545454.55 | AL13: =IF(torlesztes="Egyedi",-SUMIFS(U$7:U$126,T$7:T$126,">"&AJ12,T$7:T$126,"<="&AJ13),IFERROR(IF(torlesztes="Egyenlő tőke",IF(COUNT($AK$7:AK13)>$D$15,"",-$AK$5/$D$15),0),"")) -> -909090.9091 | AM13: -999721.0461 | AN13: 94545454.55 | AO13: =IF(torlesztes="Egyedi",-SUMIFS(U$7:U$126,T$7:T$126,">"&AJ12,T$7:T$126,"<="&AJ13),IFERROR(IF(torlesztes="Egyenlő tőke",IF(COUNT($AN$7:AN13)>$D$15,"",-$AK$5/$D$15),0),"")) -> -909090.9091 | AP13: -120448.3188 | AR13: 879272.7273 | AS13: 835434.251 | AT13: 31
B14: Adósminősítés | C14: Rossz | F14: Hitelre jutó támogatás intenzítása (EUR) | G14: =I4/eurelszamolhato -> 0.4305798701 | J14: FALSE | O14: 0 | P14: 0 | Q14: 0 | AA14: 2021-11-15 | AB14: 0 | AC14: 93636363.64 | AD14: -958169.3649 | AE14: -115442.0922 | AF14: 30 | AH14: 8 | AI14: 8 | AJ14: 2021-12-15 | AK14: 93636363.64 | AL14: =IF(torlesztes="Egyedi",-SUMIFS(U$7:U$126,T$7:T$126,">"&AJ13,T$7:T$126,"<="&AJ14),IFERROR(IF(torlesztes="Egyenlő tőke",IF(COUNT($AK$7:AK14)>$D$15,"",-$AK$5/$D$15),0),"")) -> -909090.9091 | AM14: -958169.3649 | AN14: 93636363.64 | AO14: =IF(torlesztes="Egyedi",-SUMIFS(U$7:U$126,T$7:T$126,">"&AJ13,T$7:T$126,"<="&AJ14),IFERROR(IF(torlesztes="Egyenlő tőke",IF(COUNT($AN$7:AN14)>$D$15,"",-$AK$5/$D$15),0),"")) -> -909090.9091 | AP14: -115442.0922 | AR14: 842727.2727 | AS14: 798415.4228 | AT14: 30
B15: Fedezettség | C15: Alacsony | D15: =COUNT(AI7:AI126) -> 110 | F15: Adott beruházási költséghez kapcsolódó teljes támogatás összege (EUR) | G15: =I4+IF(C34="Egyéb támogatások: pl. Egyéb GBER, ABER",SUM(C45:C50)+C60,IF(C34="GBER 14, 17-es jogcímek",SUM(C45:C50)+C53+C55,SUM(C45:C50))) -> 167447.7273 | J15: FALSE | O15: 0 | P15: 0 | Q15: 0 | AA15: 2021-12-15 | AB15: 0 | AC15: 92727272.73 | AD15: -980495.6413 | AE15: -118132.005 | AF15: 31 | AH15: 9 | AI15: 9 | AJ15: 2022-01-15 | AK15: 92727272.73 | AL15: =IF(torlesztes="Egyedi",-SUMIFS(U$7:U$126,T$7:T$126,">"&AJ14,T$7:T$126,"<="&AJ15),IFERROR(IF(torlesztes="Egyenlő tőke",IF(COUNT($AK$7:AK15)>$D$15,"",-$AK$5/$D$15),0),"")) -> -909090.9091 | AM15: -980495.6413 | AN15: 92727272.73 | AO15: =IF(torlesztes="Egyedi",-SUMIFS(U$7:U$126,T$7:T$126,">"&AJ14,T$7:T$126,"<="&AJ15),IFERROR(IF(torlesztes="Egyenlő tőke",IF(COUNT($AN$7:AN15)>$D$15,"",-$AK$5/$D$15),0),"")) -> -909090.9091 | AP15: -118132.005 | AR15: 862363.6364 | AS15: 814677.0807 | AT15: 31
B16: Kockázati felár (bázispont) | C16: =IF(C12="Van",OFFSET(Adatok!$E$4,MATCH(C14,Adatok!$E$5:$E$9,0),MATCH(C15,Adatok!$F$4:$H$4,0),),MAX(OFFSET(Adatok!$E$4,MATCH(C14,Adatok!$E$5:$E$9,0),MATCH(C15,Adatok!$F$4:$H$4,0),),400)) -> 1000 | F16: Teljes támogatás intenzítása | G16: =G15/eurelszamolhato -> 0.4305798701 | J16: FALSE | O16: 0 | P16: 0 | Q16: 0 | AA16: 2022-01-15 | AB16: 0 | AC16: 91818181.82 | AD16: -970882.939 | AE16: -116973.8481 | AF16: 31 | AH16: 10 | AI16: =IF(COUNT(AJ16)=1,AI15+1,"") -> 10 | AJ16: 2022-02-15 | AK16: 91818181.82 | AL16: =IF(torlesztes="Egyedi",-SUMIFS(U$7:U$126,T$7:T$126,">"&AJ15,T$7:T$126,"<="&AJ16),IFERROR(IF(torlesztes="Egyenlő tőke",IF(COUNT($AK$7:AK16)>$D$15,"",-$AK$5/$D$15),0),"")) -> -909090.9091 | AM16: -970882.939 | AN16: 91818181.82 | AO16: =IF(torlesztes="Egyedi",-SUMIFS(U$7:U$126,T$7:T$126,">"&AJ15,T$7:T$126,"<="&AJ16),IFERROR(IF(torlesztes="Egyenlő tőke",IF(COUNT($AN$7:AN16)>$D$15,"",-$AK$5/$D$15),0),"")) -> -909090.9091 | AP16: -116973.8481 | AR16: 853909.0909 | AS16: 804377.4653 | AT16: 31
B17: Egyéni referencia kamatláb | C17: =+(C11+C16/10000) -> 0.1245 | J17: FALSE | O17: 0 | P17: 0 | Q17: 0 | AA17: 2022-02-15 | AB17: 0 | AC17: 90909090.91 | AD17: -868244.0847 | AE17: -104607.721 | AF17: 28 | AH17: 11 | AI17: =IF(COUNT(AJ17)=1,AI16+1,"") -> 11 | AJ17: 2022-03-15 | AK17: 90909090.91 | AL17: =IF(torlesztes="Egyedi",-SUMIFS(U$7:U$126,T$7:T$126,">"&AJ16,T$7:T$126,"<="&AJ17),IFERROR(IF(torlesztes="Egyenlő tőke",IF(COUNT($AK$7:AK17)>$D$15,"",-$AK$5/$D$15),0),"")) -> -909090.9091 | AM17: -868244.0847 | AN17: 90909090.91 | AO17: =IF(torlesztes="Egyedi",-SUMIFS(U$7:U$126,T$7:T$126,">"&AJ16,T$7:T$126,"<="&AJ17),IFERROR(IF(torlesztes="Egyenlő tőke",IF(COUNT($AN$7:AN17)>$D$15,"",-$AK$5/$D$15),0),"")) -> -909090.9091 | AP17: -104607.721 | AR17: 763636.3636 | AS17: 717278.8972 | AT17: 28
F18: Maximális támogatási mértékek | G18: =IF(G16>G20,"Nem finanszírozható","") ->  | H18: =IF(G16>H20,"Nem finanszírozható","") -> Nem finanszírozható | J18: FALSE | O18: 0 | P18: 0 | Q18: 0 | AA18: 2022-03-15 | AB18: 0 | AC18: 90000000 | AD18: -951657.5342 | AE18: -114657.5342 | AF18: 31 | AH18: 12 | AI18: 12 | AJ18: 2022-04-15 | AK18: 90000000 | AL18: =IF(torlesztes="Egyedi",-SUMIFS(U$7:U$126,T$7:T$126,">"&AJ17,T$7:T$126,"<="&AJ18),IFERROR(IF(torlesztes="Egyenlő tőke",IF(COUNT($AK$7:AK18)>$D$15,"",-$AK$5/$D$15),0),"")) -> -909090.9091 | AM18: -951657.5342 | AN18: 90000000 | AO18: =IF(torlesztes="Egyedi",-SUMIFS(U$7:U$126,T$7:T$126,">"&AJ17,T$7:T$126,"<="&AJ18),IFERROR(IF(torlesztes="Egyenlő tőke",IF(COUNT($AN$7:AN18)>$D$15,"",-$AK$5/$D$15),0),"")) -> -909090.9091 | AP18: -114657.5342 | AR18: 837000 | AS18: 783935.0921 | AT18: 31
B19: HITELKARAKTERISZTIKA | D19: =VLOOKUP($C$31,Adatok!P3:Q5,2,0) -> 12 | G19: 14-es cikk | H19: 17-es cikk | J19: FALSE | O19: 0 | P19: 0 | Q19: 0 | AA19: 2022-04-15 | AB19: 0 | AC19: 89090909.09 | AD19: -911656.2889 | AE19: -109838.1071 | AF19: 30 | AH19: 13 | AI19: 13 | AJ19: 2022-05-15 | AK19: 89090909.09 | AL19: =IF(torlesztes="Egyedi",-SUMIFS(U$7:U$126,T$7:T$126,">"&AJ18,T$7:T$126,"<="&AJ19),IFERROR(IF(torlesztes="Egyenlő tőke",IF(COUNT($AK$7:AK19)>$D$15,"",-$AK$5/$D$15),0),"")) -> -909090.9091 | AM19: -911656.2889 | AN19: 89090909.09 | AO19: =IF(torlesztes="Egyedi",-SUMIFS(U$7:U$126,T$7:T$126,">"&AJ18,T$7:T$126,"<="&AJ19),IFERROR(IF(torlesztes="Egyenlő tőke",IF(COUNT($AN$7:AN19)>$D$15,"",-$AK$5/$D$15),0),"")) -> -909090.9091 | AP19: -109838.1071 | AR19: 801818.1818 | AS19: 748830.875 | AT19: 30
B20: Hitel fajtája/célja | C20: Beruházási hitel | F20: Maximális támogatásintenzitás (%) | G20: =IF(tizennegyeskizarok=0,"Nem jogosult",IF(ttmax14es=0,0,(G22+C53+C48)/(forintelszamolhato/arfolyam))) -> 0.55 | H20: =IF(tizenheteskizarok=0,"Nem jogosult",IF(ttmax17es=0,0,(H22+C55+C48)/(eurelszamolhato))) -> 0.2 | J20: FALSE | O20: 0 | P20: 0 | Q20: 0 | AA20: 2022-05-15 | AB20: 0 | AC20: 88181818.18 | AD20: -932432.1295 | AE20: -112341.2204 | AF20: 31 | AH20: 14 | AI20: 14 | AJ20: 2022-06-15 | AK20: 88181818.18 | AL20: =IF(torlesztes="Egyedi",-SUMIFS(U$7:U$126,T$7:T$126,">"&AJ19,T$7:T$126,"<="&AJ20),IFERROR(IF(torlesztes="Egyenlő tőke",IF(COUNT($AK$7:AK20)>$D$15,"",-$AK$5/$D$15),0),"")) -> -909090.9091 | AM20: -932432.1295 | AN20: 88181818.18 | AO20: =IF(torlesztes="Egyedi",-SUMIFS(U$7:U$126,T$7:T$126,">"&AJ19,T$7:T$126,"<="&AJ20),IFERROR(IF(torlesztes="Egyenlő tőke",IF(COUNT($AN$7:AN20)>$D$15,"",-$AK$5/$D$15),0),"")) -> -909090.9091 | AP20: -112341.2204 | AR20: 820090.9091 | AS20: 763700.4296 | AT20: 31
B21: Vállalat mérete | C21: Mikró/Kis | F21: Maximális hitelösszeg (EUR) | G21: =IF(tizennegyeskizarok=0,"Nem jogosult",hitelpertamogatasarany*G22) -> 354818.6722 | H21: =IF(tizenheteskizarok=0,"Nem jogosult",hitelpertamogatasarany*H22) -> 129024.9717 | J21: FALSE | O21: 0 | P21: 0 | Q21: 0 | AA21: 2022-06-15 | AB21: 0 | AC21: 87272727.27 | AD21: -893051.0585 | AE21: -107596.5131 | AF21: 30 | AH21: 15 | AI21: 15 | AJ21: 2022-07-15 | AK21: 87272727.27 | AL21: =IF(torlesztes="Egyedi",-SUMIFS(U$7:U$126,T$7:T$126,">"&AJ20,T$7:T$126,"<="&AJ21),IFERROR(IF(torlesztes="Egyenlő tőke",IF(COUNT($AK$7:AK21)>$D$15,"",-$AK$5/$D$15),0),"")) -> -909090.9091 | AM21: -893051.0585 | AN21: 87272727.27 | AO21: =IF(torlesztes="Egyedi",-SUMIFS(U$7:U$126,T$7:T$126,">"&AJ20,T$7:T$126,"<="&AJ21),IFERROR(IF(torlesztes="Egyenlő tőke",IF(COUNT($AN$7:AN21)>$D$15,"",-$AK$5/$D$15),0),"")) -> -909090.9091 | AP21: -107596.5131 | AR21: 785454.5455 | AS21: 729348.8279 | AT21: 30
B22: Támogatás jogalapja | C22: Egyéb | F22: Maximális hitelösszeghez tartozó támogatástartalom (EUR) | G22: =IF(tizennegyeskizarok=0,"Nem jogosult",MIN(MAX((Szamitasok!B16*(Szamitasok!B10+0.5*Szamitasok!B11)-C53-C48),0),Szamitasok!B17)) -> 213888.8889 | H22: =IF(tizenheteskizarok=0,"Nem jogosult",MAX(MIN(((((eurelszamolhato)*vallmeret)-C55-C48)),7.5*1000000),0)) -> 77777.77778 | J22: FALSE | O22: 0 | P22: 0 | Q22: 0 | AA22: 2022-07-15 | AB22: 0 | AC22: 86363636.36 | AD22: -913206.7248 | AE22: -110024.9066 | AF22: 31 | AH22: 16 | AI22: 16 | AJ22: 2022-08-15 | AK22: 86363636.36 | AL22: =IF(torlesztes="Egyedi",-SUMIFS(U$7:U$126,T$7:T$126,">"&AJ21,T$7:T$126,"<="&AJ22),IFERROR(IF(torlesztes="Egyenlő tőke",IF(COUNT($AK$7:AK22)>$D$15,"",-$AK$5/$D$15),0),"")) -> -909090.9091 | AM22: -913206.7248 | AN22: 86363636.36 | AO22: =IF(torlesztes="Egyedi",-SUMIFS(U$7:U$126,T$7:T$126,">"&AJ21,T$7:T$126,"<="&AJ22),IFERROR(IF(torlesztes="Egyenlő tőke",IF(COUNT($AN$7:AN22)>$D$15,"",-$AK$5/$D$15),0),"")) -> -909090.9091 | AP22: -110024.9066 | AR22: 803181.8182 | AS22: 743671.7694 | AT22: 31
B23: =IF(C23<C24,"Nem lehet kisebb, mint a hitelösszeg","Beruházás elszámolható költsége ("&C9&")") -> Beruházás elszámolható költsége (HUF) | C23: 140000000 | J23: FALSE | O23: 0 | P23: 0 | Q23: 0 | AA23: 2022-08-15 | AB23: 0 | AC23: 85454545.45 | AD23: -903594.0224 | AE23: -108866.7497 | AF23: 31 | AH23: 17 | AI23: 17 | AJ23: 2022-09-15 | AK23: 85454545.45 | AL23: =IF(torlesztes="Egyedi",-SUMIFS(U$7:U$126,T$7:T$126,">"&AJ22,T$7:T$126,"<="&AJ23),IFERROR(IF(torlesztes="Egyenlő tőke",IF(COUNT($AK$7:AK23)>$D$15,"",-$AK$5/$D$15),0),"")) -> -909090.9091 | AM23: -903594.0224 | AN23: 85454545.45 | AO23: =IF(torlesztes="Egyedi",-SUMIFS(U$7:U$126,T$7:T$126,">"&AJ22,T$7:T$126,"<="&AJ23),IFERROR(IF(torlesztes="Egyenlő tőke",IF(COUNT($AN$7:AN23)>$D$15,"",-$AK$5/$D$15),0),"")) -> -909090.9091 | AP23: -108866.7497 | AR23: 794727.2727 | AS23: 733734.1598 | AT23: 31
B24: =IF(C9="HUF",IF(C24>3500000000,"A hitelösszeg nem haladhatja meg a 3,5 milliárd forintot!","Hitelösszeg ("&C9&")"),IF(C24>10000000,"A hitelösszeg nem haladhatja meg a 10 millió eurót!","Hitelösszeg ("&C9&")")) -> Hitelösszeg (HUF) | C24: 100000000 | J24: FALSE | O24: 0 | P24: 0 | Q24: 0 | AA24: 2022-09-15 | AB24: 0 | AC24: 84545454.55 | AD24: -865143.213 | AE24: -104234.122 | AF24: 30 | AH24: 18 | AI24: 18 | AJ24: 2022-10-15 | AK24: 84545454.55 | AL24: =IF(torlesztes="Egyedi",-SUMIFS(U$7:U$126,T$7:T$126,">"&AJ23,T$7:T$126,"<="&AJ24),IFERROR(IF(torlesztes="Egyenlő tőke",IF(COUNT($AK$7:AK24)>$D$15,"",-$AK$5/$D$15),0),"")) -> -909090.9091 | AM24: -865143.213 | AN24: 84545454.55 | AO24: =IF(torlesztes="Egyedi",-SUMIFS(U$7:U$126,T$7:T$126,">"&AJ23,T$7:T$126,"<="&AJ24),IFERROR(IF(torlesztes="Egyenlő tőke",IF(COUNT($AN$7:AN24)>$D$15,"",-$AK$5/$D$15),0),"")) -> -909090.9091 | AP24: -104234.122 | AR24: 760909.0909 | AS24: 700497.4993 | AT24: 30
B25: Hitel jóváhagyásának várható időpontja (EXIM döntés dátuma) | C25: 2020-05-15 | J25: FALSE | O25: 0 | P25: 0 | Q25: 0 | AA25: 2022-10-15 | AB25: 0 | AC25: 83636363.64 | AD25: -884368.6177 | AE25: -106550.4359 | AF25: 31 | AH25: 19 | AI25: 19 | AJ25: 2022-11-15 | AK25: 83636363.64 | AL25: =IF(torlesztes="Egyedi",-SUMIFS(U$7:U$126,T$7:T$126,">"&AJ24,T$7:T$126,"<="&AJ25),IFERROR(IF(torlesztes="Egyenlő tőke",IF(COUNT($AK$7:AK25)>$D$15,"",-$AK$5/$D$15),0),"")) -> -909090.9091 | AM25: -884368.6177 | AN25: 83636363.64 | AO25: =IF(torlesztes="Egyedi",-SUMIFS(U$7:U$126,T$7:T$126,">"&AJ24,T$7:T$126,"<="&AJ25),IFERROR(IF(torlesztes="Egyenlő tőke",IF(COUNT($AN$7:AN25)>$D$15,"",-$AK$5/$D$15),0),"")) -> -909090.9091 | AP25: -106550.4359 | AR25: 777818.1818 | AS25: 714011.3279 | AT25: 31
B26: ="Szerződéskötés várható dátuma"&IF(C26>DATE(2022,6,30)," - Nem lehet későbbi, mint 2022.06.30","") -> Szerződéskötés várható dátuma | C26: 2020-05-30 | J26: FALSE | O26: 0 | P26: 0 | Q26: 0 | AA26: 2022-11-15 | AB26: 0 | AC26: 82727272.73 | AD26: -846537.9826 | AE26: -101992.528 | AF26: 30 | AH26: 20 | AI26: 20 | AJ26: 2022-12-15 | AK26: 82727272.73 | AL26: =IF(torlesztes="Egyedi",-SUMIFS(U$7:U$126,T$7:T$126,">"&AJ25,T$7:T$126,"<="&AJ26),IFERROR(IF(torlesztes="Egyenlő tőke",IF(COUNT($AK$7:AK26)>$D$15,"",-$AK$5/$D$15),0),"")) -> -909090.9091 | AM26: -846537.9826 | AN26: 82727272.73 | AO26: =IF(torlesztes="Egyedi",-SUMIFS(U$7:U$126,T$7:T$126,">"&AJ25,T$7:T$126,"<="&AJ26),IFERROR(IF(torlesztes="Egyenlő tőke",IF(COUNT($AN$7:AN26)>$D$15,"",-$AK$5/$D$15),0),"")) -> -909090.9091 | AP26: -101992.528 | AR26: 744545.4545 | AS26: 681508.7287 | AT26: 30
B27: Első törlesztés várható dátuma | C27: 2021-05-15 | J27: FALSE | O27: 0 | P27: 0 | Q27: 0 | AA27: 2022-12-15 | AB27: 0 | AC27: 81818181.82 | AD27: -865143.213 | AE27: -104234.122 | AF27: 31 | AH27: 21 | AI27: 21 | AJ27: 2023-01-15 | AK27: 81818181.82 | AL27: =IF(torlesztes="Egyedi",-SUMIFS(U$7:U$126,T$7:T$126,">"&AJ26,T$7:T$126,"<="&AJ27),IFERROR(IF(torlesztes="Egyenlő tőke",IF(COUNT($AK$7:AK27)>$D$15,"",-$AK$5/$D$15),0),"")) -> -909090.9091 | AM27: -865143.213 | AN27: 81818181.82 | AO27: =IF(torlesztes="Egyedi",-SUMIFS(U$7:U$126,T$7:T$126,">"&AJ26,T$7:T$126,"<="&AJ27),IFERROR(IF(torlesztes="Egyenlő tőke",IF(COUNT($AN$7:AN27)>$D$15,"",-$AK$5/$D$15),0),"")) -> -909090.9091 | AP27: -104234.122 | AR27: 760909.0909 | AS27: 694490.2829 | AT27: 31
B28: =IF(C28>EDATE(C26,120),"A futamidő nem haladhatja meg a 10 évet","Hitel végső lejáratának várható dátuma") -> Hitel végső lejáratának várható dátuma | C28: 2030-05-30 | J28: FALSE | O28: 0 | P28: 0 | Q28: 0 | AA28: 2023-01-15 | AB28: 0 | AC28: 80909090.91 | AD28: -855530.5106 | AE28: -103075.9651 | AF28: 31 | AH28: 22 | AI28: 22 | AJ28: 2023-02-15 | AK28: 80909090.91 | AL28: =IF(torlesztes="Egyedi",-SUMIFS(U$7:U$126,T$7:T$126,">"&AJ27,T$7:T$126,"<="&AJ28),IFERROR(IF(torlesztes="Egyenlő tőke",IF(COUNT($AK$7:AK28)>$D$15,"",-$AK$5/$D$15),0),"")) -> -909090.9091 | AM28: -855530.5106 | AN28: 80909090.91 | AO28: =IF(torlesztes="Egyedi",-SUMIFS(U$7:U$126,T$7:T$126,">"&AJ27,T$7:T$126,"<="&AJ28),IFERROR(IF(torlesztes="Egyenlő tőke",IF(COUNT($AN$7:AN28)>$D$15,"",-$AK$5/$D$15),0),"")) -> -909090.9091 | AP28: -103075.9651 | AR28: 752454.5455 | AS28: 684804.9101 | AT28: 31
B29: Tényleges ügyleti kamat | C29: =IF(C9="EUR",0.005,0.015) -> 0.015 | J29: FALSE | O29: 0 | P29: 0 | Q29: 0 | AA29: 2023-02-15 | AB29: 0 | AC29: 80000000 | AD29: -764054.7945 | AE29: -92054.79452 | AF29: 28 | AH29: 23 | AI29: =IF(COUNT(AJ29)=1,AI28+1,"") -> 23 | AJ29: 2023-03-15 | AK29: 80000000 | AL29: =IF(torlesztes="Egyedi",-SUMIFS(U$7:U$126,T$7:T$126,">"&AJ28,T$7:T$126,"<="&AJ29),IFERROR(IF(torlesztes="Egyenlő tőke",IF(COUNT($AK$7:AK29)>$D$15,"",-$AK$5/$D$15),0),"")) -> -909090.9091 | AM29: -764054.7945 | AN29: 80000000 | AO29: =IF(torlesztes="Egyedi",-SUMIFS(U$7:U$126,T$7:T$126,">"&AJ28,T$7:T$126,"<="&AJ29),IFERROR(IF(torlesztes="Egyenlő tőke",IF(COUNT($AN$7:AN29)>$D$15,"",-$AK$5/$D$15),0),"")) -> -909090.9091 | AP29: -92054.79452 | AR29: 672000 | AS29: 609830.3906 | AT29: 28
B30: Törlesztés módja | C30: Egyenlő tőke | J30: FALSE | O30: 0 | P30: 0 | Q30: 0 | AA30: 2023-03-15 | AB30: 0 | AC30: 79090909.09 | AD30: -836305.1059 | AE30: -100759.6513 | AF30: 31 | AH30: 24 | AI30: 24 | AJ30: 2023-04-15 | AK30: 79090909.09 | AL30: =IF(torlesztes="Egyedi",-SUMIFS(U$7:U$126,T$7:T$126,">"&AJ29,T$7:T$126,"<="&AJ30),IFERROR(IF(torlesztes="Egyenlő tőke",IF(COUNT($AK$7:AK30)>$D$15,"",-$AK$5/$D$15),0),"")) -> -909090.9091 | AM30: -836305.1059 | AN30: 79090909.09 | AO30: =IF(torlesztes="Egyedi",-SUMIFS(U$7:U$126,T$7:T$126,">"&AJ29,T$7:T$126,"<="&AJ30),IFERROR(IF(torlesztes="Egyenlő tőke",IF(COUNT($AN$7:AN30)>$D$15,"",-$AK$5/$D$15),0),"")) -> -909090.9091 | AP30: -100759.6513 | AR30: 735545.4545 | AS30: 665583.4296 | AT30: 31
B31: =IF(torlesztes="Egyenlő tőke","Kamatfizetés/tőketörlesztés gyakorisága","Kamatfizetés gyakorisága") -> Kamatfizetés/tőketörlesztés gyakorisága | C31: Havi | J31: FALSE | O31: 0 | P31: 0 | Q31: 0 | AA31: 2023-04-15 | AB31: 0 | AC31: 78181818.18 | AD31: -800024.9066 | AE31: -96388.54296 | AF31: 30 | AH31: 25 | AI31: 25 | AJ31: 2023-05-15 | AK31: 78181818.18 | AL31: =IF(torlesztes="Egyedi",-SUMIFS(U$7:U$126,T$7:T$126,">"&AJ30,T$7:T$126,"<="&AJ31),IFERROR(IF(torlesztes="Egyenlő tőke",IF(COUNT($AK$7:AK31)>$D$15,"",-$AK$5/$D$15),0),"")) -> -909090.9091 | AM31: -800024.9066 | AN31: 78181818.18 | AO31: =IF(torlesztes="Egyedi",-SUMIFS(U$7:U$126,T$7:T$126,">"&AJ30,T$7:T$126,"<="&AJ31),IFERROR(IF(torlesztes="Egyenlő tőke",IF(COUNT($AN$7:AN31)>$D$15,"",-$AK$5/$D$15),0),"")) -> -909090.9091 | AP31: -96388.54296 | AR31: 703636.3636 | AS31: 634884.1069 | AT31: 30
B32: A beruházási hitel kapcsolódik-e ugyanazon elszámolható költéségek tekintetében megítélt támogatáshoz vagy a TF 3.1 alapján megítélt támogatásokhoz? | C32: Igen | J32: FALSE | O32: 0 | P32: 0 | Q32: 0 | AA32: 2023-05-15 | AB32: 0 | AC32: 77272727.27 | AD32: -817079.7011 | AE32: -98443.33748 | AF32: 31 | AH32: 26 | AI32: 26 | AJ32: 2023-06-15 | AK32: 77272727.27 | AL32: =IF(torlesztes="Egyedi",-SUMIFS(U$7:U$126,T$7:T$126,">"&AJ31,T$7:T$126,"<="&AJ32),IFERROR(IF(torlesztes="Egyenlő tőke",IF(COUNT($AK$7:AK32)>$D$15,"",-$AK$5/$D$15),0),"")) -> -909090.9091 | AM32: -817079.7011 | AN32: 77272727.27 | AO32: =IF(torlesztes="Egyedi",-SUMIFS(U$7:U$126,T$7:T$126,">"&AJ31,T$7:T$126,"<="&AJ32),IFERROR(IF(torlesztes="Egyenlő tőke",IF(COUNT($AN$7:AN32)>$D$15,"",-$AK$5/$D$15),0),"")) -> -909090.9091 | AP32: -98443.33748 | AR32: 718636.3636 | AS32: 646559.5991 | AT32: 31
J33: FALSE | O33: 0 | P33: 0 | Q33: 0 | AA33: 2023-06-15 | AB33: 0 | AC33: 76363636.36 | AD33: -781419.6762 | AE33: -94146.94894 | AF33: 30 | AH33: 27 | AI33: 27 | AJ33: 2023-07-15 | AK33: 76363636.36 | AL33: =IF(torlesztes="Egyedi",-SUMIFS(U$7:U$126,T$7:T$126,">"&AJ32,T$7:T$126,"<="&AJ33),IFERROR(IF(torlesztes="Egyenlő tőke",IF(COUNT($AK$7:AK33)>$D$15,"",-$AK$5/$D$15),0),"")) -> -909090.9091 | AM33: -781419.6762 | AN33: 76363636.36 | AO33: =IF(torlesztes="Egyedi",-SUMIFS(U$7:U$126,T$7:T$126,">"&AJ32,T$7:T$126,"<="&AJ33),IFERROR(IF(torlesztes="Egyenlő tőke",IF(COUNT($AN$7:AN33)>$D$15,"",-$AK$5/$D$15),0),"")) -> -909090.9091 | AP33: -94146.94894 | AR33: 687272.7273 | AS33: 616568.9922 | AT33: 30
B34: ÁCSR/Agrár/Halászati csoportmentességi támogatásokhoz kapcsoldódó azonos elszámolható költségekhez megítélt állami támogatások | C34: GBER 14, 17-es jogcímek | J34: FALSE | O34: 0 | P34: 0 | Q34: 0 | AA34: 2023-07-15 | AB34: 0 | AC34: 75454545.45 | AD34: -797854.2964 | AE34: -96127.02366 | AF34: 31 | AH34: 28 | AI34: 28 | AJ34: 2023-08-15 | AK34: 75454545.45 | AL34: =IF(torlesztes="Egyedi",-SUMIFS(U$7:U$126,T$7:T$126,">"&AJ33,T$7:T$126,"<="&AJ34),IFERROR(IF(torlesztes="Egyenlő tőke",IF(COUNT($AK$7:AK34)>$D$15,"",-$AK$5/$D$15),0),"")) -> -909090.9091 | AM34: -797854.2964 | AN34: 75454545.45 | AO34: =IF(torlesztes="Egyedi",-SUMIFS(U$7:U$126,T$7:T$126,">"&AJ33,T$7:T$126,"<="&AJ34),IFERROR(IF(torlesztes="Egyenlő tőke",IF(COUNT($AN$7:AN34)>$D$15,"",-$AK$5/$D$15),0),"")) -> -909090.9091 | AP34: -96127.02366 | AR34: 701727.2727 | AS34: 627731.7857 | AT34: 31
J35: FALSE | O35: 0 | P35: 0 | Q35: 0 | AA35: 2023-08-15 | AB35: 0 | AC35: 74545454.55 | AD35: -788241.594 | AE35: -94968.86675 | AF35: 31 | AH35: 29 | AI35: 29 | AJ35: 2023-09-15 | AK35: 74545454.55 | AL35: =IF(torlesztes="Egyedi",-SUMIFS(U$7:U$126,T$7:T$126,">"&AJ34,T$7:T$126,"<="&AJ35),IFERROR(IF(torlesztes="Egyenlő tőke",IF(COUNT($AK$7:AK35)>$D$15,"",-$AK$5/$D$15),0),"")) -> -909090.9091 | AM35: -788241.594 | AN35: 74545454.55 | AO35: =IF(torlesztes="Egyedi",-SUMIFS(U$7:U$126,T$7:T$126,">"&AJ34,T$7:T$126,"<="&AJ35),IFERROR(IF(torlesztes="Egyenlő tőke",IF(COUNT($AN$7:AN35)>$D$15,"",-$AK$5/$D$15),0),"")) -> -909090.9091 | AP35: -94968.86675 | AR35: 693272.7273 | AS35: 618390.8784 | AT35: 31
B36: Beruházás helyszíne | C36: Közép_Magyarország | J36: FALSE | O36: 0 | P36: 0 | Q36: 0 | AA36: 2023-09-15 | AB36: 0 | AC36: 73636363.64 | AD36: -753511.8306 | AE36: -90784.55791 | AF36: 30 | AH36: 30 | AI36: 30 | AJ36: 2023-10-15 | AK36: 73636363.64 | AL36: =IF(torlesztes="Egyedi",-SUMIFS(U$7:U$126,T$7:T$126,">"&AJ35,T$7:T$126,"<="&AJ36),IFERROR(IF(torlesztes="Egyenlő tőke",IF(COUNT($AK$7:AK36)>$D$15,"",-$AK$5/$D$15),0),"")) -> -909090.9091 | AM36: -753511.8306 | AN36: 73636363.64 | AO36: =IF(torlesztes="Egyedi",-SUMIFS(U$7:U$126,T$7:T$126,">"&AJ35,T$7:T$126,"<="&AJ36),IFERROR(IF(torlesztes="Egyenlő tőke",IF(COUNT($AN$7:AN36)>$D$15,"",-$AK$5/$D$15),0),"")) -> -909090.9091 | AP36: -90784.55791 | AR36: 662727.2727 | AS36: 589450.034 | AT36: 30
B37: Melyik település? | C37: Áporka | J37: FALSE | O37: 0 | P37: 0 | Q37: 0 | AA37: 2023-10-15 | AB37: 0 | AC37: 72727272.73 | AD37: -769016.1893 | AE37: -92652.55293 | AF37: 31 | AH37: 31 | AI37: 31 | AJ37: 2023-11-15 | AK37: 72727272.73 | AL37: =IF(torlesztes="Egyedi",-SUMIFS(U$7:U$126,T$7:T$126,">"&AJ36,T$7:T$126,"<="&AJ37),IFERROR(IF(torlesztes="Egyenlő tőke",IF(COUNT($AK$7:AK37)>$D$15,"",-$AK$5/$D$15),0),"")) -> -909090.9091 | AM37: -769016.1893 | AN37: 72727272.73 | AO37: =IF(torlesztes="Egyedi",-SUMIFS(U$7:U$126,T$7:T$126,">"&AJ36,T$7:T$126,"<="&AJ37),IFERROR(IF(torlesztes="Egyenlő tőke",IF(COUNT($AN$7:AN37)>$D$15,"",-$AK$5/$D$15),0),"")) -> -909090.9091 | AP37: -92652.55293 | AR37: 676363.6364 | AS37: 599854.0551 | AT37: 31
J38: FALSE | O38: 0 | P38: 0 | Q38: 0 | AA38: 2023-11-15 | AB38: 0 | AC38: 71818181.82 | AD38: -734906.6002 | AE38: -88542.96389 | AF38: 30 | AH38: 32 | AI38: 32 | AJ38: 2023-12-15 | AK38: 71818181.82 | AL38: =IF(torlesztes="Egyedi",-SUMIFS(U$7:U$126,T$7:T$126,">"&AJ37,T$7:T$126,"<="&AJ38),IFERROR(IF(torlesztes="Egyenlő tőke",IF(COUNT($AK$7:AK38)>$D$15,"",-$AK$5/$D$15),0),"")) -> -909090.9091 | AM38: -734906.6002 | AN38: 71818181.82 | AO38: =IF(torlesztes="Egyedi",-SUMIFS(U$7:U$126,T$7:T$126,">"&AJ37,T$7:T$126,"<="&AJ38),IFERROR(IF(torlesztes="Egyenlő tőke",IF(COUNT($AN$7:AN38)>$D$15,"",-$AK$5/$D$15),0),"")) -> -909090.9091 | AP38: -88542.96389 | AR38: 646363.6364 | AS38: 571604.263 | AT38: 30
B39: Nem azonos elszámolható költségekre megítélt COVID Közlemény 3.1 szerinti állami támogatások | J39: FALSE | O39: 0 | P39: =IF(AND(ISBLANK(L38),AH39<>1),0,IFERROR(-O39*piacikamat/365*(IF(ISBLANK(L39),$C$27,L39)-N39),"")) -> 0 | Q39: =IF(AND(ISBLANK(L38),AH39<>1),0,IFERROR(-O39*tenylegeskamat/365*(IF(ISBLANK(L39),$C$27,L39)-N39),"")) -> 0 | R39: =IFERROR(IF(ISBLANK(L39),$C$27,L39)-N39,"") ->  | AA39: 2023-12-15 | AB39: 0 | AC39: 70909090.91 | AD39: -749790.7846 | AE39: -90336.2391 | AF39: 31 | AH39: 33 | AI39: 33 | AJ39: 2024-01-15 | AK39: 70909090.91 | AL39: =IF(torlesztes="Egyedi",-SUMIFS(U$7:U$126,T$7:T$126,">"&AJ38,T$7:T$126,"<="&AJ39),IFERROR(IF(torlesztes="Egyenlő tőke",IF(COUNT($AK$7:AK39)>$D$15,"",-$AK$5/$D$15),0),"")) -> -909090.9091 | AM39: -749790.7846 | AN39: 70909090.91 | AO39: =IF(torlesztes="Egyedi",-SUMIFS(U$7:U$126,T$7:T$126,">"&AJ38,T$7:T$126,"<="&AJ39),IFERROR(IF(torlesztes="Egyenlő tőke",IF(COUNT($AN$7:AN39)>$D$15,"",-$AK$5/$D$15),0),"")) -> -909090.9091 | AP39: -90336.2391 | AR39: 659454.5455 | AS39: 581509.2191 | AT39: 31
B40: Mezőgazdasági ágazatra megítélt támogatás teljes összege (EUR): | J40: FALSE | O40: 0 | P40: 0 | Q40: 0 | AA40: 2024-01-15 | AB40: 0 | AC40: 70000000 | AD40: -740178.0822 | AE40: -89178.08219 | AF40: 31 | AH40: 34 | AI40: 34 | AJ40: =IF(OR(AJ39=$C$28,AJ39=""),"",IFERROR(IF(EDATE($C$27,(AH40-1)*12/$D$19)<=$C$28,EDATE($C$27,(AH40-1)*12/$D$19),$C$28),"")) -> 2024-02-15 | AK40: 70000000 | AL40: =IF(torlesztes="Egyedi",-SUMIFS(U$7:U$126,T$7:T$126,">"&AJ39,T$7:T$126,"<="&AJ40),IFERROR(IF(torlesztes="Egyenlő tőke",IF(COUNT($AK$7:AK40)>$D$15,"",-$AK$5/$D$15),0),"")) -> -909090.9091 | AM40: =IF(torlesztes="Egyedi",SUMIFS(X$7:X$126,T$7:T$126,">"&AJ39,T$7:T$126,"<="&AJ40)+AD40,IFERROR(-AK40*piacikamat/365*(AJ40-AJ39),"")) -> -740178.0822 | AN40: 70000000 | AO40: =IF(torlesztes="Egyedi",-SUMIFS(U$7:U$126,T$7:T$126,">"&AJ39,T$7:T$126,"<="&AJ40),IFERROR(IF(torlesztes="Egyenlő tőke",IF(COUNT($AN$7:AN40)>$D$15,"",-$AK$5/$D$15),0),"")) -> -909090.9091 | AP40: =IF(torlesztes="Egyedi",SUMIFS(Y$7:Y$126,T$7:T$126,">"&AJ39,T$7:T$126,"<="&AJ40)+AE40,IFERROR(-AN40*tenylegeskamat/365*(AJ40-AJ39),"")) -> -89178.08219 | AR40: 651000 | AS40: =IFERROR(AR40/POWER(1+($C$11+1%)/$D$19,AI40-1)/(1+($C$11+1%)/365*($AJ$7-$C$25)),"") -> 572408.2989 | AT40: 31
B41: Halászati, akvakultúra ágazatra megítélt támogatás teljes összeg (EUR): | J41: FALSE | O41: 0 | P41: 0 | Q41: 0 | AA41: 2024-02-15 | AB41: 0 | AC41: 69090909.09 | AD41: -683432.1295 | AE41: -82341.22042 | AF41: 29 | AH41: 35 | AI41: 35 | AJ41: 2024-03-15 | AK41: 69090909.09 | AL41: =IF(torlesztes="Egyedi",-SUMIFS(U$7:U$126,T$7:T$126,">"&AJ40,T$7:T$126,"<="&AJ41),IFERROR(IF(torlesztes="Egyenlő tőke",IF(COUNT($AK$7:AK41)>$D$15,"",-$AK$5/$D$15),0),"")) -> -909090.9091 | AM41: -683432.1295 | AN41: 69090909.09 | AO41: =IF(torlesztes="Egyedi",-SUMIFS(U$7:U$126,T$7:T$126,">"&AJ40,T$7:T$126,"<="&AJ41),IFERROR(IF(torlesztes="Egyenlő tőke",IF(COUNT($AN$7:AN41)>$D$15,"",-$AK$5/$D$15),0),"")) -> -909090.9091 | AP41: -82341.22042 | AR41: 601090.9091 | AS41: 527009.3102 | AT41: 29
B42: Egyéb ágazatra megítélt támogatás tejes összege (EUR): | J42: FALSE | O42: 0 | P42: 0 | Q42: 0 | AA42: 2024-03-15 | AB42: 0 | AC42: 68181818.18 | AD42: -720952.6775 | AE42: -86861.76837 | AF42: 31 | AH42: 36 | AI42: 36 | AJ42: 2024-04-15 | AK42: 68181818.18 | AL42: =IF(torlesztes="Egyedi",-SUMIFS(U$7:U$126,T$7:T$126,">"&AJ41,T$7:T$126,"<="&AJ42),IFERROR(IF(torlesztes="Egyenlő tőke",IF(COUNT($AK$7:AK42)>$D$15,"",-$AK$5/$D$15),0),"")) -> -909090.9091 | AM42: -720952.6775 | AN42: 68181818.18 | AO42: =IF(torlesztes="Egyedi",-SUMIFS(U$7:U$126,T$7:T$126,">"&AJ41,T$7:T$126,"<="&AJ42),IFERROR(IF(torlesztes="Egyenlő tőke",IF(COUNT($AN$7:AN42)>$D$15,"",-$AK$5/$D$15),0),"")) -> -909090.9091 | AP42: -86861.76837 | AR42: 634090.9091 | AS42: 554348.4652 | AT42: 31
J43: FALSE | O43: 0 | P43: 0 | Q43: 0 | AA43: 2024-04-15 | AB43: 0 | AC43: 67272727.27 | AD43: -688393.5243 | AE43: -82938.97883 | AF43: 30 | AH43: 37 | AI43: 37 | AJ43: 2024-05-15 | AK43: 67272727.27 | AL43: =IF(torlesztes="Egyedi",-SUMIFS(U$7:U$126,T$7:T$126,">"&AJ42,T$7:T$126,"<="&AJ43),IFERROR(IF(torlesztes="Egyenlő tőke",IF(COUNT($AK$7:AK43)>$D$15,"",-$AK$5/$D$15),0),"")) -> -909090.9091 | AM43: -688393.5243 | AN43: 67272727.27 | AO43: =IF(torlesztes="Egyedi",-SUMIFS(U$7:U$126,T$7:T$126,">"&AJ42,T$7:T$126,"<="&AJ43),IFERROR(IF(torlesztes="Egyenlő tőke",IF(COUNT($AN$7:AN43)>$D$15,"",-$AK$5/$D$15),0),"")) -> -909090.9091 | AP43: -82938.97883 | AR43: 605454.5455 | AS43: 527795.9598 | AT43: =IFERROR(AJ43-AJ42,"") -> 30
B44: Azonos elszámolható költségekre megítélt COVID Közlemény 3.1 és de minimis szerinti állami támogatások | J44: FALSE | O44: 0 | P44: 0 | Q44: 0 | AA44: 2024-05-15 | AB44: 0 | AC44: 66363636.36 | AD44: -701727.2727 | AE44: -84545.45455 | AF44: 31 | AH44: 38 | AI44: 38 | AJ44: 2024-06-15 | AK44: 66363636.36 | AL44: =IF(torlesztes="Egyedi",-SUMIFS(U$7:U$126,T$7:T$126,">"&AJ43,T$7:T$126,"<="&AJ44),IFERROR(IF(torlesztes="Egyenlő tőke",IF(COUNT($AK$7:AK44)>$D$15,"",-$AK$5/$D$15),0),"")) -> -909090.9091 | AM44: -701727.2727 | AN44: 66363636.36 | AO44: =IF(torlesztes="Egyedi",-SUMIFS(U$7:U$126,T$7:T$126,">"&AJ43,T$7:T$126,"<="&AJ44),IFERROR(IF(torlesztes="Egyenlő tőke",IF(COUNT($AN$7:AN44)>$D$15,"",-$AK$5/$D$15),0),"")) -> -909090.9091 | AP44: -84545.45455 | AR44: 617181.8182 | AS44: 536476.6643 | AT44: 31
B45: Mezőgazdasági ágazatra megítélt támogatás teljes összege (EUR): | J45: FALSE | O45: =IF(ISBLANK(L44),0,M44+O44) -> 0 | P45: 0 | Q45: 0 | AA45: 2024-06-15 | AB45: 0 | AC45: 65454545.45 | AD45: -669788.2939 | AE45: -80697.38481 | AF45: 30 | AH45: 39 | AI45: 39 | AJ45: 2024-07-15 | AK45: 65454545.45 | AL45: =IF(torlesztes="Egyedi",-SUMIFS(U$7:U$126,T$7:T$126,">"&AJ44,T$7:T$126,"<="&AJ45),IFERROR(IF(torlesztes="Egyenlő tőke",IF(COUNT($AK$7:AK45)>$D$15,"",-$AK$5/$D$15),0),"")) -> -909090.9091 | AM45: -669788.2939 | AN45: 65454545.45 | AO45: =IF(torlesztes="Egyedi",-SUMIFS(U$7:U$126,T$7:T$126,">"&AJ44,T$7:T$126,"<="&AJ45),IFERROR(IF(torlesztes="Egyenlő tőke",IF(COUNT($AN$7:AN45)>$D$15,"",-$AK$5/$D$15),0),"")) -> -909090.9091 | AP45: -80697.38481 | AR45: 589090.9091 | AS45: 510591.085 | AT45: 30
B46: Halászati, akvakultúra ágazatra megítélt támogatás teljes összeg (EUR): | J46: FALSE | O46: 0 | P46: 0 | Q46: 0 | AA46: 2024-07-15 | AB46: 0 | AC46: 64545454.55 | AD46: -682501.868 | AE46: -82229.14072 | AF46: 31 | AH46: 40 | AI46: 40 | AJ46: 2024-08-15 | AK46: 64545454.55 | AL46: =IF(torlesztes="Egyedi",-SUMIFS(U$7:U$126,T$7:T$126,">"&AJ45,T$7:T$126,"<="&AJ46),IFERROR(IF(torlesztes="Egyenlő tőke",IF(COUNT($AK$7:AK46)>$D$15,"",-$AK$5/$D$15),0),"")) -> -909090.9091 | AM46: -682501.868 | AN46: 64545454.55 | AO46: =IF(torlesztes="Egyedi",-SUMIFS(U$7:U$126,T$7:T$126,">"&AJ45,T$7:T$126,"<="&AJ46),IFERROR(IF(torlesztes="Egyenlő tőke",IF(COUNT($AN$7:AN46)>$D$15,"",-$AK$5/$D$15),0),"")) -> -909090.9091 | AP46: -82229.14072 | AR46: 600272.7273 | AS46: 518791.3352 | AT46: 31
B47: Egyéb ágazatra megítélt támogatás tejes összege (EUR): | J47: FALSE | O47: =IF(ISBLANK(L46),0,M46+O46) -> 0 | P47: 0 | Q47: 0 | X47: =IFERROR(-W47*piacikamat/365*(T47-V47),"") ->  | Y47: =IFERROR(-W47*tenylegeskamat/365*(T47-V47),"") ->  | AA47: 2024-08-15 | AB47: 0 | AC47: 63636363.64 | AD47: =IFERROR(-(AC47-AB47)*piacikamat/365*(AJ47-AA47),0) -> -672889.1656 | AE47: =IFERROR(-(AC47-AB47)*tenylegeskamat/365*(AJ47-AA47),0) -> -81070.98381 | AF47: =IFERROR(AJ47-AA47,"") -> 31 | AH47: 41 | AI47: =IF(COUNT(AJ47)=1,AI46+1,"") -> 41 | AJ47: 2024-09-15 | AK47: =+IF(COUNT(AK46)<>0,SUM(AK46:AL46)*(1-J47),"") -> 63636363.64 | AL47: =IF(torlesztes="Egyedi",-SUMIFS(U$7:U$126,T$7:T$126,">"&AJ46,T$7:T$126,"<="&AJ47),IFERROR(IF(torlesztes="Egyenlő tőke",IF(COUNT($AK$7:AK47)>$D$15,"",-$AK$5/$D$15),0),"")) -> -909090.9091 | AM47: -672889.1656 | AN47: 63636363.64 | AO47: =IF(torlesztes="Egyedi",-SUMIFS(U$7:U$126,T$7:T$126,">"&AJ46,T$7:T$126,"<="&AJ47),IFERROR(IF(torlesztes="Egyenlő tőke",IF(COUNT($AN$7:AN47)>$D$15,"",-$AK$5/$D$15),0),"")) -> -909090.9091 | AP47: -81070.98381 | AR47: =IFERROR(MAX((ABS(AM47)-ABS(AP47)),0),"") -> 591818.1818 | AS47: 510018.1129 | AT47: =IFERROR(AJ47-AJ46,"") -> 31
B48: =IF(C48>200000,"A megadott érték nem haladhatja meg a 200 000 eurót","Az igényelt hitelhez megítélt ugyanazon elszámolható költségekhez kapcsolódó de minimis támogatások összege (EUR)") -> Az igényelt hitelhez megítélt ugyanazon elszámolható költségekhez kapcsolódó de minimis támogatások összege (EUR) | J48: FALSE | O48: 0 | P48: 0 | Q48: 0 | AA48: 2024-09-15 | AB48: 0 | AC48: 62727272.73 | AD48: -641880.4483 | AE48: -77334.99377 | AF48: 30 | AH48: 42 | AI48: 42 | AJ48: 2024-10-15 | AK48: 62727272.73 | AL48: =IF(torlesztes="Egyedi",-SUMIFS(U$7:U$126,T$7:T$126,">"&AJ47,T$7:T$126,"<="&AJ48),IFERROR(IF(torlesztes="Egyenlő tőke",IF(COUNT($AK$7:AK48)>$D$15,"",-$AK$5/$D$15),0),"")) -> -909090.9091 | AM48: -641880.4483 | AN48: 62727272.73 | AO48: =IF(torlesztes="Egyedi",-SUMIFS(U$7:U$126,T$7:T$126,">"&AJ47,T$7:T$126,"<="&AJ48),IFERROR(IF(torlesztes="Egyenlő tőke",IF(COUNT($AN$7:AN48)>$D$15,"",-$AK$5/$D$15),0),"")) -> -909090.9091 | AP48: -77334.99377 | AR48: 564545.4545 | AS48: 485120.2533 | AT48: 30
B49: =IF(C49>15000,"A megadott érték nem haladhatja meg a 15 000 eurót","Az igényelt hitelhez megítélt ugyanazon elszámolható költségekhez kapcsolódó agrár de minimis támogatások összege (EUR)") -> Az igényelt hitelhez megítélt ugyanazon elszámolható költségekhez kapcsolódó agrár de minimis támogatások összege (EUR) | J49: FALSE | O49: 0 | P49: 0 | Q49: 0 | AA49: 2024-10-15 | AB49: 0 | AC49: 61818181.82 | AD49: -653663.7609 | AE49: -78754.66999 | AF49: 31 | AH49: 43 | AI49: 43 | AJ49: 2024-11-15 | AK49: 61818181.82 | AL49: =IF(torlesztes="Egyedi",-SUMIFS(U$7:U$126,T$7:T$126,">"&AJ48,T$7:T$126,"<="&AJ49),IFERROR(IF(torlesztes="Egyenlő tőke",IF(COUNT($AK$7:AK49)>$D$15,"",-$AK$5/$D$15),0),"")) -> -909090.9091 | AM49: -653663.7609 | AN49: 61818181.82 | AO49: =IF(torlesztes="Egyedi",-SUMIFS(U$7:U$126,T$7:T$126,">"&AJ48,T$7:T$126,"<="&AJ49),IFERROR(IF(torlesztes="Egyenlő tőke",IF(COUNT($AN$7:AN49)>$D$15,"",-$AK$5/$D$15),0),"")) -> -909090.9091 | AP49: -78754.66999 | AR49: 574909.0909 | AS49: 492609.5899 | AT49: 31
B50: =IF(C50>30000,"A megadott érték nem haladhatja meg a 30 000 eurót","Az igényelt hitelhez megítélt ugyanazon elszámolható költségekhez kapcsolódó halászati de minimis támogatások összege (EUR)") -> Az igényelt hitelhez megítélt ugyanazon elszámolható költségekhez kapcsolódó halászati de minimis támogatások összege (EUR) | J50: FALSE | O50: 0 | P50: 0 | Q50: 0 | AA50: 2024-11-15 | AB50: 0 | AC50: 60909090.91 | AD50: -623275.2179 | AE50: -75093.39975 | AF50: 30 | AH50: 44 | AI50: 44 | AJ50: 2024-12-15 | AK50: 60909090.91 | AL50: =IF(torlesztes="Egyedi",-SUMIFS(U$7:U$126,T$7:T$126,">"&AJ49,T$7:T$126,"<="&AJ50),IFERROR(IF(torlesztes="Egyenlő tőke",IF(COUNT($AK$7:AK50)>$D$15,"",-$AK$5/$D$15),0),"")) -> -909090.9091 | AM50: -623275.2179 | AN50: 60909090.91 | AO50: =IF(torlesztes="Egyedi",-SUMIFS(U$7:U$126,T$7:T$126,">"&AJ49,T$7:T$126,"<="&AJ50),IFERROR(IF(torlesztes="Egyenlő tőke",IF(COUNT($AN$7:AN50)>$D$15,"",-$AK$5/$D$15),0),"")) -> -909090.9091 | AP50: -75093.39975 | AR50: 548181.8182 | AS50: 468361.8448 | AT50: 30
J51: FALSE | O51: 0 | P51: 0 | Q51: 0 | AA51: 2024-12-15 | AB51: 0 | AC51: 60000000 | AD51: -634438.3562 | AE51: -76438.35616 | AF51: 31 | AH51: 45 | AI51: 45 | AJ51: 2025-01-15 | AK51: 60000000 | AL51: =IF(torlesztes="Egyedi",-SUMIFS(U$7:U$126,T$7:T$126,">"&AJ50,T$7:T$126,"<="&AJ51),IFERROR(IF(torlesztes="Egyenlő tőke",IF(COUNT($AK$7:AK51)>$D$15,"",-$AK$5/$D$15),0),"")) -> -909090.9091 | AM51: -634438.3562 | AN51: 60000000 | AO51: =IF(torlesztes="Egyedi",-SUMIFS(U$7:U$126,T$7:T$126,">"&AJ50,T$7:T$126,"<="&AJ51),IFERROR(IF(torlesztes="Egyenlő tőke",IF(COUNT($AN$7:AN51)>$D$15,"",-$AK$5/$D$15),0),"")) -> -909090.9091 | AP51: -76438.35616 | AR51: 558000 | AS51: 475383.687 | AT51: 31
B52: Azonos megyében folytatott működés során megítélt regionális beruházási támogatások | J52: FALSE | O52: 0 | P52: 0 | Q52: 0 | AA52: 2025-01-15 | AB52: 0 | AC52: 59090909.09 | AD52: -624825.6538 | AE52: -75280.19925 | AF52: 31 | AH52: 46 | AI52: 46 | AJ52: 2025-02-15 | AK52: 59090909.09 | AL52: =IF(torlesztes="Egyedi",-SUMIFS(U$7:U$126,T$7:T$126,">"&AJ51,T$7:T$126,"<="&AJ52),IFERROR(IF(torlesztes="Egyenlő tőke",IF(COUNT($AK$7:AK52)>$D$15,"",-$AK$5/$D$15),0),"")) -> -909090.9091 | AM52: -624825.6538 | AN52: 59090909.09 | AO52: =IF(torlesztes="Egyedi",-SUMIFS(U$7:U$126,T$7:T$126,">"&AJ51,T$7:T$126,"<="&AJ52),IFERROR(IF(torlesztes="Egyenlő tőke",IF(COUNT($AN$7:AN52)>$D$15,"",-$AK$5/$D$15),0),"")) -> -909090.9091 | AP52: -75280.19925 | AR52: 549545.4545 | AS52: 466838.7425 | AT52: 31
B53: Regionális alapon megítélt beruházási támogatások teljes összege (14. cikk), az azonos tevékenységre, azonos megyében (EUR) | J53: FALSE | O53: 0 | P53: 0 | Q53: 0 | AA53: 2025-02-15 | AB53: 0 | AC53: 58181818.18 | AD53: -555676.2142 | AE53: -66948.94147 | AF53: 28 | AH53: 47 | AI53: 47 | AJ53: 2025-03-15 | AK53: 58181818.18 | AL53: =IF(torlesztes="Egyedi",-SUMIFS(U$7:U$126,T$7:T$126,">"&AJ52,T$7:T$126,"<="&AJ53),IFERROR(IF(torlesztes="Egyenlő tőke",IF(COUNT($AK$7:AK53)>$D$15,"",-$AK$5/$D$15),0),"")) -> -909090.9091 | AM53: -555676.2142 | AN53: 58181818.18 | AO53: =IF(torlesztes="Egyedi",-SUMIFS(U$7:U$126,T$7:T$126,">"&AJ52,T$7:T$126,"<="&AJ53),IFERROR(IF(torlesztes="Egyenlő tőke",IF(COUNT($AN$7:AN53)>$D$15,"",-$AK$5/$D$15),0),"")) -> -909090.9091 | AP53: -66948.94147 | AR53: 488727.2727 | AS53: 413983.5079 | AT53: 28
B54: KKV-ék részére megítélt beruházási támogatások | J54: FALSE | O54: 0 | P54: 0 | Q54: 0 | AA54: 2025-03-15 | AB54: 0 | AC54: 57272727.27 | AD54: -605600.2491 | AE54: -72963.88543 | AF54: 31 | AH54: 48 | AI54: 48 | AJ54: 2025-04-15 | AK54: 57272727.27 | AL54: =IF(torlesztes="Egyedi",-SUMIFS(U$7:U$126,T$7:T$126,">"&AJ53,T$7:T$126,"<="&AJ54),IFERROR(IF(torlesztes="Egyenlő tőke",IF(COUNT($AK$7:AK54)>$D$15,"",-$AK$5/$D$15),0),"")) -> -909090.9091 | AM54: -605600.2491 | AN54: 57272727.27 | AO54: =IF(torlesztes="Egyedi",-SUMIFS(U$7:U$126,T$7:T$126,">"&AJ53,T$7:T$126,"<="&AJ54),IFERROR(IF(torlesztes="Egyenlő tőke",IF(COUNT($AN$7:AN54)>$D$15,"",-$AK$5/$D$15),0),"")) -> -909090.9091 | AP54: -72963.88543 | AR54: 532636.3636 | AS54: 449883.9224 | AT54: 31
B55: 17-es cikk alapján elszámolható költségre (KKV-ék részére nyújtott beruházási támogatások) megítélt támogatások összege (EUR) | J55: FALSE | O55: 0 | P55: 0 | Q55: 0 | AA55: 2025-04-15 | AB55: 0 | AC55: 56363636.36 | AD55: -576762.142 | AE55: -69489.41469 | AF55: 30 | AH55: 49 | AI55: 49 | AJ55: 2025-05-15 | AK55: 56363636.36 | AL55: =IF(torlesztes="Egyedi",-SUMIFS(U$7:U$126,T$7:T$126,">"&AJ54,T$7:T$126,"<="&AJ55),IFERROR(IF(torlesztes="Egyenlő tőke",IF(COUNT($AK$7:AK55)>$D$15,"",-$AK$5/$D$15),0),"")) -> -909090.9091 | AM55: -576762.142 | AN55: 56363636.36 | AO55: =IF(torlesztes="Egyedi",-SUMIFS(U$7:U$126,T$7:T$126,">"&AJ54,T$7:T$126,"<="&AJ55),IFERROR(IF(torlesztes="Egyenlő tőke",IF(COUNT($AN$7:AN55)>$D$15,"",-$AK$5/$D$15),0),"")) -> -909090.9091 | AP55: -69489.41469 | AR55: 507272.7273 | AS55: 427232.5848 | AT55: 30
J56: FALSE | O56: 0 | P56: 0 | Q56: 0 | AA56: 2025-05-15 | AB56: 0 | AC56: 55454545.45 | AD56: -586374.8443 | AE56: -70647.57161 | AF56: 31 | AH56: 50 | AI56: 50 | AJ56: 2025-06-15 | AK56: 55454545.45 | AL56: =IF(torlesztes="Egyedi",-SUMIFS(U$7:U$126,T$7:T$126,">"&AJ55,T$7:T$126,"<="&AJ56),IFERROR(IF(torlesztes="Egyenlő tőke",IF(COUNT($AK$7:AK56)>$D$15,"",-$AK$5/$D$15),0),"")) -> -909090.9091 | AM56: -586374.8443 | AN56: 55454545.45 | AO56: =IF(torlesztes="Egyedi",-SUMIFS(U$7:U$126,T$7:T$126,">"&AJ55,T$7:T$126,"<="&AJ56),IFERROR(IF(torlesztes="Egyenlő tőke",IF(COUNT($AN$7:AN56)>$D$15,"",-$AK$5/$D$15),0),"")) -> -909090.9091 | AP56: -70647.57161 | AR56: 515727.2727 | AS56: 433107.9425 | AT56: 31
B57: Korábban megítélt támogatások adatai | J57: FALSE | O57: 0 | P57: 0 | Q57: 0 | AA57: 2025-06-15 | AB57: 0 | AC57: 54545454.55 | AD57: -558156.9116 | AE57: -67247.82067 | AF57: 30 | AH57: 51 | AI57: 51 | AJ57: 2025-07-15 | AK57: 54545454.55 | AL57: =IF(torlesztes="Egyedi",-SUMIFS(U$7:U$126,T$7:T$126,">"&AJ56,T$7:T$126,"<="&AJ57),IFERROR(IF(torlesztes="Egyenlő tőke",IF(COUNT($AK$7:AK57)>$D$15,"",-$AK$5/$D$15),0),"")) -> -909090.9091 | AM57: -558156.9116 | AN57: 54545454.55 | AO57: =IF(torlesztes="Egyedi",-SUMIFS(U$7:U$126,T$7:T$126,">"&AJ56,T$7:T$126,"<="&AJ57),IFERROR(IF(torlesztes="Egyenlő tőke",IF(COUNT($AN$7:AN57)>$D$15,"",-$AK$5/$D$15),0),"")) -> -909090.9091 | AP57: -67247.82067 | AR57: 490909.0909 | AS57: 411083.759 | AT57: 30
B58: Korábban megítélt állami támogatások rendeleti alapja | C58: ABER | J58: FALSE | O58: 0 | P58: 0 | Q58: 0 | AA58: 2025-07-15 | AB58: 0 | AC58: 53636363.64 | AD58: -567149.4396 | AE58: -68331.25778 | AF58: 31 | AH58: 52 | AI58: 52 | AJ58: 2025-08-15 | AK58: 53636363.64 | AL58: =IF(torlesztes="Egyedi",-SUMIFS(U$7:U$126,T$7:T$126,">"&AJ57,T$7:T$126,"<="&AJ58),IFERROR(IF(torlesztes="Egyenlő tőke",IF(COUNT($AK$7:AK58)>$D$15,"",-$AK$5/$D$15),0),"")) -> -909090.9091 | AM58: -567149.4396 | AN58: 53636363.64 | AO58: =IF(torlesztes="Egyedi",-SUMIFS(U$7:U$126,T$7:T$126,">"&AJ57,T$7:T$126,"<="&AJ58),IFERROR(IF(torlesztes="Egyenlő tőke",IF(COUNT($AN$7:AN58)>$D$15,"",-$AK$5/$D$15),0),"")) -> -909090.9091 | AP58: -68331.25778 | AR58: 498818.1818 | AS58: 416509.3109 | AT58: 31
B59: Korábban megítélt állami támogatások jogcíme | J59: FALSE | O59: 0 | P59: 0 | Q59: 0 | AA59: 2025-08-15 | AB59: 0 | AC59: 52727272.73 | AD59: -557536.7372 | AE59: -67173.10087 | AF59: 31 | AH59: 53 | AI59: 53 | AJ59: 2025-09-15 | AK59: 52727272.73 | AL59: =IF(torlesztes="Egyedi",-SUMIFS(U$7:U$126,T$7:T$126,">"&AJ58,T$7:T$126,"<="&AJ59),IFERROR(IF(torlesztes="Egyenlő tőke",IF(COUNT($AK$7:AK59)>$D$15,"",-$AK$5/$D$15),0),"")) -> -909090.9091 | AM59: -557536.7372 | AN59: 52727272.73 | AO59: =IF(torlesztes="Egyedi",-SUMIFS(U$7:U$126,T$7:T$126,">"&AJ58,T$7:T$126,"<="&AJ59),IFERROR(IF(torlesztes="Egyenlő tőke",IF(COUNT($AN$7:AN59)>$D$15,"",-$AK$5/$D$15),0),"")) -> -909090.9091 | AP59: -67173.10087 | AR59: 490363.6364 | AS59: 408276.0374 | AT59: 31
B60: Korábban megítélt állami támogatás összege (EUR) | J60: FALSE | O60: 0 | P60: 0 | Q60: 0 | AA60: 2025-09-15 | AB60: 0 | AC60: 51818181.82 | AD60: -530249.066 | AE60: -63885.42964 | AF60: 30 | AH60: 54 | AI60: 54 | AJ60: 2025-10-15 | AK60: 51818181.82 | AL60: =IF(torlesztes="Egyedi",-SUMIFS(U$7:U$126,T$7:T$126,">"&AJ59,T$7:T$126,"<="&AJ60),IFERROR(IF(torlesztes="Egyenlő tőke",IF(COUNT($AK$7:AK60)>$D$15,"",-$AK$5/$D$15),0),"")) -> -909090.9091 | AM60: -530249.066 | AN60: 51818181.82 | AO60: =IF(torlesztes="Egyedi",-SUMIFS(U$7:U$126,T$7:T$126,">"&AJ59,T$7:T$126,"<="&AJ60),IFERROR(IF(torlesztes="Egyenlő tőke",IF(COUNT($AN$7:AN60)>$D$15,"",-$AK$5/$D$15),0),"")) -> -909090.9091 | AP60: -63885.42964 | AR60: 466363.6364 | AS60: 387180.5289 | AT60: 30
J61: FALSE | O61: 0 | P61: 0 | Q61: 0 | AA61: 2025-10-15 | AB61: 0 | AC61: 50909090.91 | AD61: -538311.3325 | AE61: -64856.78705 | AF61: 31 | AH61: 55 | AI61: 55 | AJ61: 2025-11-15 | AK61: 50909090.91 | AL61: =IF(torlesztes="Egyedi",-SUMIFS(U$7:U$126,T$7:T$126,">"&AJ60,T$7:T$126,"<="&AJ61),IFERROR(IF(torlesztes="Egyenlő tőke",IF(COUNT($AK$7:AK61)>$D$15,"",-$AK$5/$D$15),0),"")) -> -909090.9091 | AM61: -538311.3325 | AN61: 50909090.91 | AO61: =IF(torlesztes="Egyedi",-SUMIFS(U$7:U$126,T$7:T$126,">"&AJ60,T$7:T$126,"<="&AJ61),IFERROR(IF(torlesztes="Egyenlő tőke",IF(COUNT($AN$7:AN61)>$D$15,"",-$AK$5/$D$15),0),"")) -> -909090.9091 | AP61: -64856.78705 | AR61: 473454.5455 | AS61: 391940.655 | AT61: 31
J62: FALSE | O62: 0 | P62: 0 | Q62: 0 | AA62: 2025-11-15 | AB62: 0 | AC62: 50000000 | AD62: -511643.8356 | AE62: -61643.83562 | AF62: 30 | AH62: 56 | AI62: 56 | AJ62: 2025-12-15 | AK62: 50000000 | AL62: =IF(torlesztes="Egyedi",-SUMIFS(U$7:U$126,T$7:T$126,">"&AJ61,T$7:T$126,"<="&AJ62),IFERROR(IF(torlesztes="Egyenlő tőke",IF(COUNT($AK$7:AK62)>$D$15,"",-$AK$5/$D$15),0),"")) -> -909090.9091 | AM62: -511643.8356 | AN62: 50000000 | AO62: =IF(torlesztes="Egyedi",-SUMIFS(U$7:U$126,T$7:T$126,">"&AJ61,T$7:T$126,"<="&AJ62),IFERROR(IF(torlesztes="Egyenlő tőke",IF(COUNT($AN$7:AN62)>$D$15,"",-$AK$5/$D$15),0),"")) -> -909090.9091 | AP62: -61643.83562 | AR62: 450000 | AS62: 371456.3032 | AT62: 30
J63: FALSE | O63: 0 | P63: 0 | Q63: 0 | AA63: 2025-12-15 | AB63: 0 | AC63: 49090909.09 | AD63: -519085.9278 | AE63: -62540.47323 | AF63: 31 | AH63: 57 | AI63: 57 | AJ63: 2026-01-15 | AK63: 49090909.09 | AL63: =IF(torlesztes="Egyedi",-SUMIFS(U$7:U$126,T$7:T$126,">"&AJ62,T$7:T$126,"<="&AJ63),IFERROR(IF(torlesztes="Egyenlő tőke",IF(COUNT($AK$7:AK63)>$D$15,"",-$AK$5/$D$15),0),"")) -> -909090.9091 | AM63: -519085.9278 | AN63: 49090909.09 | AO63: =IF(torlesztes="Egyedi",-SUMIFS(U$7:U$126,T$7:T$126,">"&AJ62,T$7:T$126,"<="&AJ63),IFERROR(IF(torlesztes="Egyenlő tőke",IF(COUNT($AN$7:AN63)>$D$15,"",-$AK$5/$D$15),0),"")) -> -909090.9091 | AP63: -62540.47323 | AR63: 456545.4545 | AS63: 375778.9395 | AT63: 31
J64: FALSE | O64: 0 | P64: 0 | Q64: 0 | AA64: 2026-01-15 | AB64: 0 | AC64: 48181818.18 | AD64: -509473.2254 | AE64: -61382.31631 | AF64: 31 | AH64: 58 | AI64: 58 | AJ64: 2026-02-15 | AK64: 48181818.18 | AL64: =IF(torlesztes="Egyedi",-SUMIFS(U$7:U$126,T$7:T$126,">"&AJ63,T$7:T$126,"<="&AJ64),IFERROR(IF(torlesztes="Egyenlő tőke",IF(COUNT($AK$7:AK64)>$D$15,"",-$AK$5/$D$15),0),"")) -> -909090.9091 | AM64: -509473.2254 | AN64: 48181818.18 | AO64: =IF(torlesztes="Egyedi",-SUMIFS(U$7:U$126,T$7:T$126,">"&AJ63,T$7:T$126,"<="&AJ64),IFERROR(IF(torlesztes="Egyenlő tőke",IF(COUNT($AN$7:AN64)>$D$15,"",-$AK$5/$D$15),0),"")) -> -909090.9091 | AP64: -61382.31631 | AR64: 448090.9091 | AS64: 367762.7523 | AT64: 31
J65: FALSE | O65: 0 | P65: 0 | Q65: 0 | AA65: 2026-02-15 | AB65: 0 | AC65: 47272727.27 | AD65: -451486.924 | AE65: -54396.01494 | AF65: 28 | AH65: 59 | AI65: 59 | AJ65: 2026-03-15 | AK65: 47272727.27 | AL65: =IF(torlesztes="Egyedi",-SUMIFS(U$7:U$126,T$7:T$126,">"&AJ64,T$7:T$126,"<="&AJ65),IFERROR(IF(torlesztes="Egyenlő tőke",IF(COUNT($AK$7:AK65)>$D$15,"",-$AK$5/$D$15),0),"")) -> -909090.9091 | AM65: -451486.924 | AN65: 47272727.27 | AO65: =IF(torlesztes="Egyedi",-SUMIFS(U$7:U$126,T$7:T$126,">"&AJ64,T$7:T$126,"<="&AJ65),IFERROR(IF(torlesztes="Egyenlő tőke",IF(COUNT($AN$7:AN65)>$D$15,"",-$AK$5/$D$15),0),"")) -> -909090.9091 | AP65: -54396.01494 | AR65: 397090.9091 | AS65: 324971.1051 | AT65: 28
J66: FALSE | O66: 0 | P66: 0 | Q66: 0 | AA66: 2026-03-15 | AB66: 0 | AC66: 46363636.36 | AD66: -490247.8207 | AE66: -59066.00249 | AF66: 31 | AH66: 60 | AI66: 60 | AJ66: 2026-04-15 | AK66: 46363636.36 | AL66: =IF(torlesztes="Egyedi",-SUMIFS(U$7:U$126,T$7:T$126,">"&AJ65,T$7:T$126,"<="&AJ66),IFERROR(IF(torlesztes="Egyenlő tőke",IF(COUNT($AK$7:AK66)>$D$15,"",-$AK$5/$D$15),0),"")) -> -909090.9091 | AM66: -490247.8207 | AN66: 46363636.36 | AO66: =IF(torlesztes="Egyedi",-SUMIFS(U$7:U$126,T$7:T$126,">"&AJ65,T$7:T$126,"<="&AJ66),IFERROR(IF(torlesztes="Egyenlő tőke",IF(COUNT($AN$7:AN66)>$D$15,"",-$AK$5/$D$15),0),"")) -> -909090.9091 | AP66: -59066.00249 | AR66: 431181.8182 | AS66: 351858.8161 | AT66: 31
J67: FALSE | O67: 0 | P67: 0 | Q67: 0 | AA67: 2026-04-15 | AB67: 0 | AC67: 45454545.45 | AD67: -465130.7597 | AE67: -56039.85056 | AF67: 30 | AH67: 61 | AI67: 61 | AJ67: 2026-05-15 | AK67: 45454545.45 | AL67: =IF(torlesztes="Egyedi",-SUMIFS(U$7:U$126,T$7:T$126,">"&AJ66,T$7:T$126,"<="&AJ67),IFERROR(IF(torlesztes="Egyenlő tőke",IF(COUNT($AK$7:AK67)>$D$15,"",-$AK$5/$D$15),0),"")) -> -909090.9091 | AM67: -465130.7597 | AN67: 45454545.45 | AO67: =IF(torlesztes="Egyedi",-SUMIFS(U$7:U$126,T$7:T$126,">"&AJ66,T$7:T$126,"<="&AJ67),IFERROR(IF(torlesztes="Egyenlő tőke",IF(COUNT($AN$7:AN67)>$D$15,"",-$AK$5/$D$15),0),"")) -> -909090.9091 | AP67: -56039.85056 | AR67: 409090.9091 | AS67: 332874.8785 | AT67: 30
J68: FALSE | O68: 0 | P68: 0 | Q68: 0 | AA68: 2026-05-15 | AB68: 0 | AC68: 44545454.55 | AD68: -471022.4159 | AE68: -56749.68867 | AF68: 31 | AH68: 62 | AI68: 62 | AJ68: 2026-06-15 | AK68: 44545454.55 | AL68: =IF(torlesztes="Egyedi",-SUMIFS(U$7:U$126,T$7:T$126,">"&AJ67,T$7:T$126,"<="&AJ68),IFERROR(IF(torlesztes="Egyenlő tőke",IF(COUNT($AK$7:AK68)>$D$15,"",-$AK$5/$D$15),0),"")) -> -909090.9091 | AM68: -471022.4159 | AN68: 44545454.55 | AO68: =IF(torlesztes="Egyedi",-SUMIFS(U$7:U$126,T$7:T$126,">"&AJ67,T$7:T$126,"<="&AJ68),IFERROR(IF(torlesztes="Egyenlő tőke",IF(COUNT($AN$7:AN68)>$D$15,"",-$AK$5/$D$15),0),"")) -> -909090.9091 | AP68: -56749.68867 | AR68: 414272.7273 | AS68: 336124.9345 | AT68: 31
J69: FALSE | O69: 0 | P69: 0 | Q69: 0 | AA69: 2026-06-15 | AB69: 0 | AC69: 43636363.64 | AD69: -446525.5293 | AE69: -53798.25654 | AF69: 30 | AH69: 63 | AI69: 63 | AJ69: 2026-07-15 | AK69: 43636363.64 | AL69: =IF(torlesztes="Egyedi",-SUMIFS(U$7:U$126,T$7:T$126,">"&AJ68,T$7:T$126,"<="&AJ69),IFERROR(IF(torlesztes="Egyenlő tőke",IF(COUNT($AK$7:AK69)>$D$15,"",-$AK$5/$D$15),0),"")) -> -909090.9091 | AM69: -446525.5293 | AN69: 43636363.64 | AO69: =IF(torlesztes="Egyedi",-SUMIFS(U$7:U$126,T$7:T$126,">"&AJ68,T$7:T$126,"<="&AJ69),IFERROR(IF(torlesztes="Egyenlő tőke",IF(COUNT($AN$7:AN69)>$D$15,"",-$AK$5/$D$15),0),"")) -> -909090.9091 | AP69: -53798.25654 | AR69: 392727.2727 | AS69: 317730.3079 | AT69: 30
J70: FALSE | O70: 0 | P70: 0 | Q70: 0 | AA70: 2026-07-15 | AB70: 0 | AC70: 42727272.73 | AD70: -451797.0112 | AE70: -54433.37484 | AF70: 31 | AH70: 64 | AI70: 64 | AJ70: 2026-08-15 | AK70: 42727272.73 | AL70: =IF(torlesztes="Egyedi",-SUMIFS(U$7:U$126,T$7:T$126,">"&AJ69,T$7:T$126,"<="&AJ70),IFERROR(IF(torlesztes="Egyenlő tőke",IF(COUNT($AK$7:AK70)>$D$15,"",-$AK$5/$D$15),0),"")) -> -909090.9091 | AM70: -451797.0112 | AN70: 42727272.73 | AO70: =IF(torlesztes="Egyedi",-SUMIFS(U$7:U$126,T$7:T$126,">"&AJ69,T$7:T$126,"<="&AJ70),IFERROR(IF(torlesztes="Egyenlő tőke",IF(COUNT($AN$7:AN70)>$D$15,"",-$AK$5/$D$15),0),"")) -> -909090.9091 | AP70: -54433.37484 | AR70: 397363.6364 | AS70: 320559.6816 | AT70: 31
J71: FALSE | O71: 0 | P71: =IF(AND(ISBLANK(L70),AH71<>1),0,IFERROR(-O71*piacikamat/365*(IF(ISBLANK(L71),$C$27,L71)-N71),"")) -> 0 | Q71: =IF(AND(ISBLANK(L70),AH71<>1),0,IFERROR(-O71*tenylegeskamat/365*(IF(ISBLANK(L71),$C$27,L71)-N71),"")) -> 0 | R71: =IFERROR(IF(ISBLANK(L71),$C$27,L71)-N71,"") ->  | Z71: =IFERROR(T71-V71,"") ->  | AA71: 2026-08-15 | AB71: 0 | AC71: 41818181.82 | AD71: -442184.3088 | AE71: -53275.21793 | AF71: 31 | AH71: 65 | AI71: 65 | AJ71: 2026-09-15 | AK71: 41818181.82 | AL71: =IF(torlesztes="Egyedi",-SUMIFS(U$7:U$126,T$7:T$126,">"&AJ70,T$7:T$126,"<="&AJ71),IFERROR(IF(torlesztes="Egyenlő tőke",IF(COUNT($AK$7:AK71)>$D$15,"",-$AK$5/$D$15),0),"")) -> -909090.9091 | AM71: -442184.3088 | AN71: 41818181.82 | AO71: =IF(torlesztes="Egyedi",-SUMIFS(U$7:U$126,T$7:T$126,">"&AJ70,T$7:T$126,"<="&AJ71),IFERROR(IF(torlesztes="Egyenlő tőke",IF(COUNT($AN$7:AN71)>$D$15,"",-$AK$5/$D$15),0),"")) -> -909090.9091 | AP71: -53275.21793 | AR71: 388909.0909 | AS71: 312839.8483 | AT71: 31
J72: =AI72>$D$15 -> FALSE | O72: 0 | P72: 0 | Q72: 0 | V72: =IF(ISNA(MAX(T71,INDEX(AJ$6:AJ$126,MATCH(T72-1,AJ$6:AJ$126,1)))),"",MAX(T71,INDEX(AJ$6:AJ$126,MATCH(T72-1,AJ$6:AJ$126,1)))) ->  | W72: =IF(ISNA(MIN(IF(OR(ISBLANK(W71),W71=""),INDEX(AK$7:AK$126,MATCH(T72,AJ$7:AJ$126,1)),W71-U71),INDEX(AK$7:AK$126,MATCH(T72,AJ$7:AJ$126,1)))),"",MIN(IF(OR(ISBLANK(W71),W71=""),INDEX(AK$7:AK$126,MATCH(T72,AJ$7:AJ$126,1)),W71-U71),INDEX(AK$7:AK$126,MATCH(T72,AJ$7:AJ$126,1)))) ->  | AA72: =MAX(AJ71,IF(ISNA(INDEX(T$7:T$126,MATCH(AJ72,T$7:T$126,1))),0,INDEX(T$7:T$126,MATCH(AJ72,T$7:T$126,1)))) -> 2026-09-15 | AB72: =IF(ISNA(INDEX(U$7:U$126,MATCH(AJ72,T$7:T$126,1))),0,INDEX(U$7:U$126,MATCH(AJ72,T$7:T$126,1))) -> 0 | AC72: =IF(ISNA(INDEX(W$7:W$126,MATCH(AJ72,T$7:T$126,1))),AK72,INDEX(W$7:W$126,MATCH(AJ72,T$7:T$126,1))) -> 40909090.91 | AD72: -418617.6837 | AE72: -50435.8655 | AF72: 30 | AH72: 66 | AI72: 66 | AJ72: =IF(OR(AJ71=$C$28,AJ71=""),"",IFERROR(IF(EDATE($C$27,(AH72-1)*12/$D$19)<=$C$28,EDATE($C$27,(AH72-1)*12/$D$19),$C$28),"")) -> 2026-10-15 | AK72: 40909090.91 | AL72: =IF(torlesztes="Egyedi",-SUMIFS(U$7:U$126,T$7:T$126,">"&AJ71,T$7:T$126,"<="&AJ72),IFERROR(IF(torlesztes="Egyenlő tőke",IF(COUNT($AK$7:AK72)>$D$15,"",-$AK$5/$D$15),0),"")) -> -909090.9091 | AM72: =IF(torlesztes="Egyedi",SUMIFS(X$7:X$126,T$7:T$126,">"&AJ71,T$7:T$126,"<="&AJ72)+AD72,IFERROR(-AK72*piacikamat/365*(AJ72-AJ71),"")) -> -418617.6837 | AN72: =+IF(COUNT(AN71)<>0,SUM(AN71:AO71)*(1-J72),"") -> 40909090.91 | AO72: =IF(torlesztes="Egyedi",-SUMIFS(U$7:U$126,T$7:T$126,">"&AJ71,T$7:T$126,"<="&AJ72),IFERROR(IF(torlesztes="Egyenlő tőke",IF(COUNT($AN$7:AN72)>$D$15,"",-$AK$5/$D$15),0),"")) -> -909090.9091 | AP72: =IF(torlesztes="Egyedi",SUMIFS(Y$7:Y$126,T$7:T$126,">"&AJ71,T$7:T$126,"<="&AJ72)+AE72,IFERROR(-AN72*tenylegeskamat/365*(AJ72-AJ71),"")) -> -50435.8655 | AR72: 368181.8182 | AS72: =IFERROR(AR72/POWER(1+($C$11+1%)/$D$19,AI72-1)/(1+($C$11+1%)/365*($AJ$7-$C$25)),"") -> 295317.7184 | AT72: 30
J73: FALSE | N73: =IF(ISBLANK(L72),"",L72) ->  | O73: 0 | P73: 0 | Q73: 0 | AA73: 2026-10-15 | AB73: 0 | AC73: 40000000 | AD73: -422958.9041 | AE73: -50958.90411 | AF73: 31 | AH73: 67 | AI73: 67 | AJ73: 2026-11-15 | AK73: 40000000 | AL73: =IF(torlesztes="Egyedi",-SUMIFS(U$7:U$126,T$7:T$126,">"&AJ72,T$7:T$126,"<="&AJ73),IFERROR(IF(torlesztes="Egyenlő tőke",IF(COUNT($AK$7:AK73)>$D$15,"",-$AK$5/$D$15),0),"")) -> -909090.9091 | AM73: -422958.9041 | AN73: 40000000 | AO73: =IF(torlesztes="Egyedi",-SUMIFS(U$7:U$126,T$7:T$126,">"&AJ72,T$7:T$126,"<="&AJ73),IFERROR(IF(torlesztes="Egyenlő tőke",IF(COUNT($AN$7:AN73)>$D$15,"",-$AK$5/$D$15),0),"")) -> -909090.9091 | AP73: -50958.90411 | AR73: 372000 | AS73: 297524.8884 | AT73: 31
J74: FALSE | O74: 0 | P74: 0 | Q74: 0 | AA74: 2026-11-15 | AB74: 0 | AC74: 39090909.09 | AD74: -400012.4533 | AE74: -48194.27148 | AF74: 30 | AH74: 68 | AI74: 68 | AJ74: 2026-12-15 | AK74: 39090909.09 | AL74: =IF(torlesztes="Egyedi",-SUMIFS(U$7:U$126,T$7:T$126,">"&AJ73,T$7:T$126,"<="&AJ74),IFERROR(IF(torlesztes="Egyenlő tőke",IF(COUNT($AK$7:AK74)>$D$15,"",-$AK$5/$D$15),0),"")) -> -909090.9091 | AM74: -400012.4533 | AN74: 39090909.09 | AO74: =IF(torlesztes="Egyedi",-SUMIFS(U$7:U$126,T$7:T$126,">"&AJ73,T$7:T$126,"<="&AJ74),IFERROR(IF(torlesztes="Egyenlő tőke",IF(COUNT($AN$7:AN74)>$D$15,"",-$AK$5/$D$15),0),"")) -> -909090.9091 | AP74: -48194.27148 | AR74: 351818.1818 | AS74: 280576.8504 | AT74: 30
J75: FALSE | O75: 0 | P75: 0 | Q75: 0 | AA75: 2026-12-15 | AB75: 0 | AC75: 38181818.18 | AD75: -403733.4994 | AE75: -48642.59029 | AF75: 31 | AH75: 69 | AI75: 69 | AJ75: 2027-01-15 | AK75: 38181818.18 | AL75: =IF(torlesztes="Egyedi",-SUMIFS(U$7:U$126,T$7:T$126,">"&AJ74,T$7:T$126,"<="&AJ75),IFERROR(IF(torlesztes="Egyenlő tőke",IF(COUNT($AK$7:AK75)>$D$15,"",-$AK$5/$D$15),0),"")) -> -909090.9091 | AM75: -403733.4994 | AN75: 38181818.18 | AO75: =IF(torlesztes="Egyedi",-SUMIFS(U$7:U$126,T$7:T$126,">"&AJ74,T$7:T$126,"<="&AJ75),IFERROR(IF(torlesztes="Egyenlő tőke",IF(COUNT($AN$7:AN75)>$D$15,"",-$AK$5/$D$15),0),"")) -> -909090.9091 | AP75: -48642.59029 | AR75: 355090.9091 | AS75: 282375.0394 | AT75: 31
J76: FALSE | O76: 0 | P76: 0 | Q76: 0 | AA76: 2027-01-15 | AB76: 0 | AC76: 37272727.27 | AD76: -394120.797 | AE76: -47484.43337 | AF76: 31 | AH76: 70 | AI76: 70 | AJ76: 2027-02-15 | AK76: 37272727.27 | AL76: =IF(torlesztes="Egyedi",-SUMIFS(U$7:U$126,T$7:T$126,">"&AJ75,T$7:T$126,"<="&AJ76),IFERROR(IF(torlesztes="Egyenlő tőke",IF(COUNT($AK$7:AK76)>$D$15,"",-$AK$5/$D$15),0),"")) -> -909090.9091 | AM76: -394120.797 | AN76: 37272727.27 | AO76: =IF(torlesztes="Egyedi",-SUMIFS(U$7:U$126,T$7:T$126,">"&AJ75,T$7:T$126,"<="&AJ76),IFERROR(IF(torlesztes="Egyenlő tőke",IF(COUNT($AN$7:AN76)>$D$15,"",-$AK$5/$D$15),0),"")) -> -909090.9091 | AP76: -47484.43337 | AR76: 346636.3636 | AS76: 274861.5971 | AT76: 31
J77: FALSE | O77: 0 | P77: 0 | Q77: 0 | AA77: 2027-02-15 | AB77: 0 | AC77: 36363636.36 | AD77: -347297.6339 | AE77: -41843.08842 | AF77: 28 | AH77: 71 | AI77: 71 | AJ77: 2027-03-15 | AK77: 36363636.36 | AL77: =IF(torlesztes="Egyedi",-SUMIFS(U$7:U$126,T$7:T$126,">"&AJ76,T$7:T$126,"<="&AJ77),IFERROR(IF(torlesztes="Egyenlő tőke",IF(COUNT($AK$7:AK77)>$D$15,"",-$AK$5/$D$15),0),"")) -> -909090.9091 | AM77: -347297.6339 | AN77: 36363636.36 | AO77: =IF(torlesztes="Egyedi",-SUMIFS(U$7:U$126,T$7:T$126,">"&AJ76,T$7:T$126,"<="&AJ77),IFERROR(IF(torlesztes="Egyenlő tőke",IF(COUNT($AN$7:AN77)>$D$15,"",-$AK$5/$D$15),0),"")) -> -909090.9091 | AP77: -41843.08842 | AR77: 305454.5455 | AS77: 241512.5662 | AT77: 28
J78: FALSE | O78: 0 | P78: 0 | Q78: 0 | AA78: 2027-03-15 | AB78: 0 | AC78: 35454545.45 | AD78: -374895.3923 | AE78: -45168.11955 | AF78: 31 | AH78: 72 | AI78: 72 | AJ78: 2027-04-15 | AK78: 35454545.45 | AL78: =IF(torlesztes="Egyedi",-SUMIFS(U$7:U$126,T$7:T$126,">"&AJ77,T$7:T$126,"<="&AJ78),IFERROR(IF(torlesztes="Egyenlő tőke",IF(COUNT($AK$7:AK78)>$D$15,"",-$AK$5/$D$15),0),"")) -> -909090.9091 | AM78: -374895.3923 | AN78: 35454545.45 | AO78: =IF(torlesztes="Egyedi",-SUMIFS(U$7:U$126,T$7:T$126,">"&AJ77,T$7:T$126,"<="&AJ78),IFERROR(IF(torlesztes="Egyenlő tőke",IF(COUNT($AN$7:AN78)>$D$15,"",-$AK$5/$D$15),0),"")) -> -909090.9091 | AP78: -45168.11955 | AR78: 329727.2727 | AS78: 259956.8139 | AT78: 31
J79: FALSE | O79: 0 | P79: 0 | Q79: 0 | AA79: 2027-04-15 | AB79: 0 | AC79: 34545454.55 | AD79: -353499.3773 | AE79: -42590.28643 | AF79: 30 | AH79: 73 | AI79: 73 | AJ79: 2027-05-15 | AK79: 34545454.55 | AL79: =IF(torlesztes="Egyedi",-SUMIFS(U$7:U$126,T$7:T$126,">"&AJ78,T$7:T$126,"<="&AJ79),IFERROR(IF(torlesztes="Egyenlő tőke",IF(COUNT($AK$7:AK79)>$D$15,"",-$AK$5/$D$15),0),"")) -> -909090.9091 | AM79: -353499.3773 | AN79: 34545454.55 | AO79: =IF(torlesztes="Egyedi",-SUMIFS(U$7:U$126,T$7:T$126,">"&AJ78,T$7:T$126,"<="&AJ79),IFERROR(IF(torlesztes="Egyenlő tőke",IF(COUNT($AN$7:AN79)>$D$15,"",-$AK$5/$D$15),0),"")) -> -909090.9091 | AP79: -42590.28643 | AR79: 310909.0909 | AS79: 244417.8676 | AT79: 30
J80: FALSE | O80: 0 | P80: 0 | Q80: 0 | AA80: 2027-05-15 | AB80: 0 | AC80: 33636363.64 | AD80: -355669.9875 | AE80: -42851.80573 | AF80: 31 | AH80: 74 | AI80: 74 | AJ80: 2027-06-15 | AK80: 33636363.64 | AL80: =IF(torlesztes="Egyedi",-SUMIFS(U$7:U$126,T$7:T$126,">"&AJ79,T$7:T$126,"<="&AJ80),IFERROR(IF(torlesztes="Egyenlő tőke",IF(COUNT($AK$7:AK80)>$D$15,"",-$AK$5/$D$15),0),"")) -> -909090.9091 | AM80: -355669.9875 | AN80: 33636363.64 | AO80: =IF(torlesztes="Egyedi",-SUMIFS(U$7:U$126,T$7:T$126,">"&AJ79,T$7:T$126,"<="&AJ80),IFERROR(IF(torlesztes="Egyenlő tőke",IF(COUNT($AN$7:AN80)>$D$15,"",-$AK$5/$D$15),0),"")) -> -909090.9091 | AP80: -42851.80573 | AR80: 312818.1818 | AS80: 245213.6897 | AT80: 31
J81: FALSE | O81: 0 | P81: 0 | Q81: 0 | AA81: 2027-06-15 | AB81: 0 | AC81: 32727272.73 | AD81: -334894.1469 | AE81: -40348.6924 | AF81: 30 | AH81: 75 | AI81: 75 | AJ81: 2027-07-15 | AK81: 32727272.73 | AL81: =IF(torlesztes="Egyedi",-SUMIFS(U$7:U$126,T$7:T$126,">"&AJ80,T$7:T$126,"<="&AJ81),IFERROR(IF(torlesztes="Egyenlő tőke",IF(COUNT($AK$7:AK81)>$D$15,"",-$AK$5/$D$15),0),"")) -> -909090.9091 | AM81: -334894.1469 | AN81: 32727272.73 | AO81: =IF(torlesztes="Egyedi",-SUMIFS(U$7:U$126,T$7:T$126,">"&AJ80,T$7:T$126,"<="&AJ81),IFERROR(IF(torlesztes="Egyenlő tőke",IF(COUNT($AN$7:AN81)>$D$15,"",-$AK$5/$D$15),0),"")) -> -909090.9091 | AP81: -40348.6924 | AR81: 294545.4545 | AS81: 230228.055 | AT81: 30
J82: FALSE | O82: 0 | P82: 0 | Q82: 0 | AA82: 2027-07-15 | AB82: 0 | AC82: 31818181.82 | AD82: -336444.5828 | AE82: -40535.49191 | AF82: 31 | AH82: 76 | AI82: 76 | AJ82: 2027-08-15 | AK82: 31818181.82 | AL82: =IF(torlesztes="Egyedi",-SUMIFS(U$7:U$126,T$7:T$126,">"&AJ81,T$7:T$126,"<="&AJ82),IFERROR(IF(torlesztes="Egyenlő tőke",IF(COUNT($AK$7:AK82)>$D$15,"",-$AK$5/$D$15),0),"")) -> -909090.9091 | AM82: -336444.5828 | AN82: 31818181.82 | AO82: =IF(torlesztes="Egyedi",-SUMIFS(U$7:U$126,T$7:T$126,">"&AJ81,T$7:T$126,"<="&AJ82),IFERROR(IF(torlesztes="Egyenlő tőke",IF(COUNT($AN$7:AN82)>$D$15,"",-$AK$5/$D$15),0),"")) -> -909090.9091 | AP82: -40535.49191 | AR82: 295909.0909 | AS82: 230630.8619 | AT82: 31
J83: FALSE | O83: 0 | P83: 0 | Q83: 0 | AA83: 2027-08-15 | AB83: 0 | AC83: 30909090.91 | AD83: -326831.8804 | AE83: -39377.33499 | AF83: 31 | AH83: 77 | AI83: 77 | AJ83: 2027-09-15 | AK83: 30909090.91 | AL83: =IF(torlesztes="Egyedi",-SUMIFS(U$7:U$126,T$7:T$126,">"&AJ82,T$7:T$126,"<="&AJ83),IFERROR(IF(torlesztes="Egyenlő tőke",IF(COUNT($AK$7:AK83)>$D$15,"",-$AK$5/$D$15),0),"")) -> -909090.9091 | AM83: -326831.8804 | AN83: 30909090.91 | AO83: =IF(torlesztes="Egyedi",-SUMIFS(U$7:U$126,T$7:T$126,">"&AJ82,T$7:T$126,"<="&AJ83),IFERROR(IF(torlesztes="Egyenlő tőke",IF(COUNT($AN$7:AN83)>$D$15,"",-$AK$5/$D$15),0),"")) -> -909090.9091 | AP83: -39377.33499 | AR83: 287454.5455 | AS83: 223399.1362 | AT83: 31
J84: FALSE | O84: 0 | P84: 0 | Q84: 0 | AA84: 2027-09-15 | AB84: 0 | AC84: 30000000 | AD84: -306986.3014 | AE84: -36986.30137 | AF84: 30 | AH84: 78 | AI84: 78 | AJ84: 2027-10-15 | AK84: 30000000 | AL84: =IF(torlesztes="Egyedi",-SUMIFS(U$7:U$126,T$7:T$126,">"&AJ83,T$7:T$126,"<="&AJ84),IFERROR(IF(torlesztes="Egyenlő tőke",IF(COUNT($AK$7:AK84)>$D$15,"",-$AK$5/$D$15),0),"")) -> -909090.9091 | AM84: -306986.3014 | AN84: 30000000 | AO84: =IF(torlesztes="Egyedi",-SUMIFS(U$7:U$126,T$7:T$126,">"&AJ83,T$7:T$126,"<="&AJ84),IFERROR(IF(torlesztes="Egyenlő tőke",IF(COUNT($AN$7:AN84)>$D$15,"",-$AK$5/$D$15),0),"")) -> -909090.9091 | AP84: -36986.30137 | AR84: 270000 | AS84: 209232.5596 | AT84: 30
J85: FALSE | O85: 0 | P85: 0 | Q85: 0 | AA85: 2027-10-15 | AB85: 0 | AC85: 29090909.09 | AD85: -307606.4757 | AE85: -37061.02117 | AF85: 31 | AH85: 79 | AI85: 79 | AJ85: 2027-11-15 | AK85: 29090909.09 | AL85: =IF(torlesztes="Egyedi",-SUMIFS(U$7:U$126,T$7:T$126,">"&AJ84,T$7:T$126,"<="&AJ85),IFERROR(IF(torlesztes="Egyenlő tőke",IF(COUNT($AK$7:AK85)>$D$15,"",-$AK$5/$D$15),0),"")) -> -909090.9091 | AM85: -307606.4757 | AN85: 29090909.09 | AO85: =IF(torlesztes="Egyedi",-SUMIFS(U$7:U$126,T$7:T$126,">"&AJ84,T$7:T$126,"<="&AJ85),IFERROR(IF(torlesztes="Egyenlő tőke",IF(COUNT($AN$7:AN85)>$D$15,"",-$AK$5/$D$15),0),"")) -> -909090.9091 | AP85: -37061.02117 | AR85: 270545.4545 | AS85: 209054.2208 | AT85: 31
J86: FALSE | O86: 0 | P86: 0 | Q86: 0 | AA86: 2027-11-15 | AB86: 0 | AC86: 28181818.18 | AD86: -288381.071 | AE86: -34744.70735 | AF86: 30 | AH86: 80 | AI86: 80 | AJ86: 2027-12-15 | AK86: 28181818.18 | AL86: =IF(torlesztes="Egyedi",-SUMIFS(U$7:U$126,T$7:T$126,">"&AJ85,T$7:T$126,"<="&AJ86),IFERROR(IF(torlesztes="Egyenlő tőke",IF(COUNT($AK$7:AK86)>$D$15,"",-$AK$5/$D$15),0),"")) -> -909090.9091 | AM86: -288381.071 | AN86: 28181818.18 | AO86: =IF(torlesztes="Egyedi",-SUMIFS(U$7:U$126,T$7:T$126,">"&AJ85,T$7:T$126,"<="&AJ86),IFERROR(IF(torlesztes="Egyenlő tőke",IF(COUNT($AN$7:AN86)>$D$15,"",-$AK$5/$D$15),0),"")) -> -909090.9091 | AP86: -34744.70735 | AR86: 253636.3636 | AS86: 195426.4808 | AT86: 30
J87: FALSE | O87: 0 | P87: 0 | Q87: 0 | AA87: 2027-12-15 | AB87: 0 | AC87: 27272727.27 | AD87: -288381.071 | AE87: -34744.70735 | AF87: 31 | AH87: 81 | AI87: 81 | AJ87: 2028-01-15 | AK87: 27272727.27 | AL87: =IF(torlesztes="Egyedi",-SUMIFS(U$7:U$126,T$7:T$126,">"&AJ86,T$7:T$126,"<="&AJ87),IFERROR(IF(torlesztes="Egyenlő tőke",IF(COUNT($AK$7:AK87)>$D$15,"",-$AK$5/$D$15),0),"")) -> -909090.9091 | AM87: -288381.071 | AN87: 27272727.27 | AO87: =IF(torlesztes="Egyedi",-SUMIFS(U$7:U$126,T$7:T$126,">"&AJ86,T$7:T$126,"<="&AJ87),IFERROR(IF(torlesztes="Egyenlő tőke",IF(COUNT($AN$7:AN87)>$D$15,"",-$AK$5/$D$15),0),"")) -> -909090.9091 | AP87: -34744.70735 | AR87: 253636.3636 | AS87: 194866.2404 | AT87: 31
J88: FALSE | O88: 0 | P88: 0 | Q88: 0 | AA88: 2028-01-15 | AB88: 0 | AC88: 26363636.36 | AD88: -278768.3686 | AE88: -33586.55044 | AF88: 31 | AH88: 82 | AI88: 82 | AJ88: 2028-02-15 | AK88: 26363636.36 | AL88: =IF(torlesztes="Egyedi",-SUMIFS(U$7:U$126,T$7:T$126,">"&AJ87,T$7:T$126,"<="&AJ88),IFERROR(IF(torlesztes="Egyenlő tőke",IF(COUNT($AK$7:AK88)>$D$15,"",-$AK$5/$D$15),0),"")) -> -909090.9091 | AM88: -278768.3686 | AN88: 26363636.36 | AO88: =IF(torlesztes="Egyedi",-SUMIFS(U$7:U$126,T$7:T$126,">"&AJ87,T$7:T$126,"<="&AJ88),IFERROR(IF(torlesztes="Egyenlő tőke",IF(COUNT($AN$7:AN88)>$D$15,"",-$AK$5/$D$15),0),"")) -> -909090.9091 | AP88: -33586.55044 | AR88: 245181.8182 | AS88: 187830.6858 | AT88: 31
J89: FALSE | O89: 0 | P89: 0 | Q89: 0 | AA89: 2028-02-15 | AB89: 0 | AC89: 25454545.45 | AD89: -251790.7846 | AE89: -30336.2391 | AF89: 29 | AH89: 83 | AI89: 83 | AJ89: 2028-03-15 | AK89: 25454545.45 | AL89: =IF(torlesztes="Egyedi",-SUMIFS(U$7:U$126,T$7:T$126,">"&AJ88,T$7:T$126,"<="&AJ89),IFERROR(IF(torlesztes="Egyenlő tőke",IF(COUNT($AK$7:AK89)>$D$15,"",-$AK$5/$D$15),0),"")) -> -909090.9091 | AM89: -251790.7846 | AN89: 25454545.45 | AO89: =IF(torlesztes="Egyedi",-SUMIFS(U$7:U$126,T$7:T$126,">"&AJ88,T$7:T$126,"<="&AJ89),IFERROR(IF(torlesztes="Egyenlő tőke",IF(COUNT($AN$7:AN89)>$D$15,"",-$AK$5/$D$15),0),"")) -> -909090.9091 | AP89: -30336.2391 | AR89: 221454.5455 | AS89: 169167.1671 | AT89: 29
J90: FALSE | O90: 0 | P90: 0 | Q90: 0 | AA90: 2028-03-15 | AB90: 0 | AC90: 24545454.55 | AD90: -259542.9639 | AE90: -31270.23661 | AF90: 31 | AH90: 84 | AI90: 84 | AJ90: 2028-04-15 | AK90: 24545454.55 | AL90: =IF(torlesztes="Egyedi",-SUMIFS(U$7:U$126,T$7:T$126,">"&AJ89,T$7:T$126,"<="&AJ90),IFERROR(IF(torlesztes="Egyenlő tőke",IF(COUNT($AK$7:AK90)>$D$15,"",-$AK$5/$D$15),0),"")) -> -909090.9091 | AM90: -259542.9639 | AN90: 24545454.55 | AO90: =IF(torlesztes="Egyedi",-SUMIFS(U$7:U$126,T$7:T$126,">"&AJ89,T$7:T$126,"<="&AJ90),IFERROR(IF(torlesztes="Egyenlő tőke",IF(COUNT($AN$7:AN90)>$D$15,"",-$AK$5/$D$15),0),"")) -> -909090.9091 | AP90: -31270.23661 | AR90: 228272.7273 | AS90: 173875.6234 | AT90: 31
J91: FALSE | O91: 0 | P91: 0 | Q91: 0 | AA91: 2028-04-15 | AB91: 0 | AC91: 23636363.64 | AD91: -241867.995 | AE91: -29140.72229 | AF91: 30 | AH91: 85 | AI91: 85 | AJ91: 2028-05-15 | AK91: 23636363.64 | AL91: =IF(torlesztes="Egyedi",-SUMIFS(U$7:U$126,T$7:T$126,">"&AJ90,T$7:T$126,"<="&AJ91),IFERROR(IF(torlesztes="Egyenlő tőke",IF(COUNT($AK$7:AK91)>$D$15,"",-$AK$5/$D$15),0),"")) -> -909090.9091 | AM91: -241867.995 | AN91: 23636363.64 | AO91: =IF(torlesztes="Egyedi",-SUMIFS(U$7:U$126,T$7:T$126,">"&AJ90,T$7:T$126,"<="&AJ91),IFERROR(IF(torlesztes="Egyenlő tőke",IF(COUNT($AN$7:AN91)>$D$15,"",-$AK$5/$D$15),0),"")) -> -909090.9091 | AP91: -29140.72229 | AR91: 212727.2727 | AS91: 161570.117 | AT91: 30
J92: FALSE | O92: 0 | P92: 0 | Q92: 0 | AA92: 2028-05-15 | AB92: 0 | AC92: 22727272.73 | AD92: -240317.5592 | AE92: -28953.92279 | AF92: 31 | AH92: 86 | AI92: 86 | AJ92: 2028-06-15 | AK92: 22727272.73 | AL92: =IF(torlesztes="Egyedi",-SUMIFS(U$7:U$126,T$7:T$126,">"&AJ91,T$7:T$126,"<="&AJ92),IFERROR(IF(torlesztes="Egyenlő tőke",IF(COUNT($AK$7:AK92)>$D$15,"",-$AK$5/$D$15),0),"")) -> -909090.9091 | AM92: -240317.5592 | AN92: 22727272.73 | AO92: =IF(torlesztes="Egyedi",-SUMIFS(U$7:U$126,T$7:T$126,">"&AJ91,T$7:T$126,"<="&AJ92),IFERROR(IF(torlesztes="Egyenlő tőke",IF(COUNT($AN$7:AN92)>$D$15,"",-$AK$5/$D$15),0),"")) -> -909090.9091 | AP92: -28953.92279 | AR92: 211363.6364 | AS92: 160074.1978 | AT92: 31
J93: FALSE | O93: 0 | P93: 0 | Q93: 0 | AA93: 2028-06-15 | AB93: 0 | AC93: 21818181.82 | AD93: -223262.7646 | AE93: -26899.12827 | AF93: 30 | AH93: 87 | AI93: 87 | AJ93: 2028-07-15 | AK93: 21818181.82 | AL93: =IF(torlesztes="Egyedi",-SUMIFS(U$7:U$126,T$7:T$126,">"&AJ92,T$7:T$126,"<="&AJ93),IFERROR(IF(torlesztes="Egyenlő tőke",IF(COUNT($AK$7:AK93)>$D$15,"",-$AK$5/$D$15),0),"")) -> -909090.9091 | AM93: -223262.7646 | AN93: 21818181.82 | AO93: =IF(torlesztes="Egyedi",-SUMIFS(U$7:U$126,T$7:T$126,">"&AJ92,T$7:T$126,"<="&AJ93),IFERROR(IF(torlesztes="Egyenlő tőke",IF(COUNT($AN$7:AN93)>$D$15,"",-$AK$5/$D$15),0),"")) -> -909090.9091 | AP93: -26899.12827 | AR93: 196363.6364 | AS93: 148287.7661 | AT93: 30
J94: FALSE | O94: 0 | P94: 0 | Q94: 0 | AA94: 2028-07-15 | AB94: 0 | AC94: 20909090.91 | AD94: -221092.1544 | AE94: -26637.60897 | AF94: 31 | AH94: 88 | AI94: 88 | AJ94: 2028-08-15 | AK94: 20909090.91 | AL94: =IF(torlesztes="Egyedi",-SUMIFS(U$7:U$126,T$7:T$126,">"&AJ93,T$7:T$126,"<="&AJ94),IFERROR(IF(torlesztes="Egyenlő tőke",IF(COUNT($AK$7:AK94)>$D$15,"",-$AK$5/$D$15),0),"")) -> -909090.9091 | AM94: -221092.1544 | AN94: 20909090.91 | AO94: =IF(torlesztes="Egyedi",-SUMIFS(U$7:U$126,T$7:T$126,">"&AJ93,T$7:T$126,"<="&AJ94),IFERROR(IF(torlesztes="Egyenlő tőke",IF(COUNT($AN$7:AN94)>$D$15,"",-$AK$5/$D$15),0),"")) -> -909090.9091 | AP94: -26637.60897 | AR94: 194454.5455 | AS94: 146425.1073 | AT94: 31
J95: FALSE | O95: 0 | P95: 0 | Q95: 0 | AA95: 2028-08-15 | AB95: 0 | AC95: 20000000 | AD95: -211479.4521 | AE95: -25479.45205 | AF95: 31 | AH95: 89 | AI95: 89 | AJ95: 2028-09-15 | AK95: 20000000 | AL95: =IF(torlesztes="Egyedi",-SUMIFS(U$7:U$126,T$7:T$126,">"&AJ94,T$7:T$126,"<="&AJ95),IFERROR(IF(torlesztes="Egyenlő tőke",IF(COUNT($AK$7:AK95)>$D$15,"",-$AK$5/$D$15),0),"")) -> -909090.9091 | AM95: -211479.4521 | AN95: 20000000 | AO95: =IF(torlesztes="Egyedi",-SUMIFS(U$7:U$126,T$7:T$126,">"&AJ94,T$7:T$126,"<="&AJ95),IFERROR(IF(torlesztes="Egyenlő tőke",IF(COUNT($AN$7:AN95)>$D$15,"",-$AK$5/$D$15),0),"")) -> -909090.9091 | AP95: -25479.45205 | AR95: 186000 | AS95: 139657.2836 | AT95: 31
J96: FALSE | O96: 0 | P96: 0 | Q96: 0 | AA96: 2028-09-15 | AB96: 0 | AC96: 19090909.09 | AD96: -195354.9191 | AE96: -23536.73724 | AF96: 30 | AH96: 90 | AI96: 90 | AJ96: 2028-10-15 | AK96: 19090909.09 | AL96: =IF(torlesztes="Egyedi",-SUMIFS(U$7:U$126,T$7:T$126,">"&AJ95,T$7:T$126,"<="&AJ96),IFERROR(IF(torlesztes="Egyenlő tőke",IF(COUNT($AK$7:AK96)>$D$15,"",-$AK$5/$D$15),0),"")) -> -909090.9091 | AM96: -195354.9191 | AN96: 19090909.09 | AO96: =IF(torlesztes="Egyedi",-SUMIFS(U$7:U$126,T$7:T$126,">"&AJ95,T$7:T$126,"<="&AJ96),IFERROR(IF(torlesztes="Egyenlő tőke",IF(COUNT($AN$7:AN96)>$D$15,"",-$AK$5/$D$15),0),"")) -> -909090.9091 | AP96: -23536.73724 | AR96: 171818.1818 | AS96: 128639.0903 | AT96: 30
J97: FALSE | O97: 0 | P97: 0 | Q97: 0 | AA97: 2028-10-15 | AB97: 0 | AC97: 18181818.18 | AD97: -192254.0473 | AE97: -23163.13823 | AF97: 31 | AH97: 91 | AI97: 91 | AJ97: 2028-11-15 | AK97: 18181818.18 | AL97: =IF(torlesztes="Egyedi",-SUMIFS(U$7:U$126,T$7:T$126,">"&AJ96,T$7:T$126,"<="&AJ97),IFERROR(IF(torlesztes="Egyenlő tőke",IF(COUNT($AK$7:AK97)>$D$15,"",-$AK$5/$D$15),0),"")) -> -909090.9091 | AM97: -192254.0473 | AN97: 18181818.18 | AO97: =IF(torlesztes="Egyedi",-SUMIFS(U$7:U$126,T$7:T$126,">"&AJ96,T$7:T$126,"<="&AJ97),IFERROR(IF(torlesztes="Egyenlő tőke",IF(COUNT($AN$7:AN97)>$D$15,"",-$AK$5/$D$15),0),"")) -> -909090.9091 | AP97: -23163.13823 | AR97: 169090.9091 | AS97: 126234.2765 | AT97: 31
J98: FALSE | O98: 0 | P98: 0 | Q98: 0 | AA98: 2028-11-15 | AB98: 0 | AC98: 17272727.27 | AD98: -176749.6887 | AE98: -21295.14321 | AF98: 30 | AH98: 92 | AI98: 92 | AJ98: 2028-12-15 | AK98: 17272727.27 | AL98: =IF(torlesztes="Egyedi",-SUMIFS(U$7:U$126,T$7:T$126,">"&AJ97,T$7:T$126,"<="&AJ98),IFERROR(IF(torlesztes="Egyenlő tőke",IF(COUNT($AK$7:AK98)>$D$15,"",-$AK$5/$D$15),0),"")) -> -909090.9091 | AM98: -176749.6887 | AN98: 17272727.27 | AO98: =IF(torlesztes="Egyedi",-SUMIFS(U$7:U$126,T$7:T$126,">"&AJ97,T$7:T$126,"<="&AJ98),IFERROR(IF(torlesztes="Egyenlő tőke",IF(COUNT($AN$7:AN98)>$D$15,"",-$AK$5/$D$15),0),"")) -> -909090.9091 | AP98: -21295.14321 | AR98: 155454.5455 | AS98: 115721.3939 | AT98: 30
J99: FALSE | O99: 0 | P99: 0 | Q99: 0 | AA99: 2028-12-15 | AB99: 0 | AC99: 16363636.36 | AD99: -173028.6426 | AE99: -20846.82441 | AF99: 31 | AH99: 93 | AI99: 93 | AJ99: 2029-01-15 | AK99: 16363636.36 | AL99: =IF(torlesztes="Egyedi",-SUMIFS(U$7:U$126,T$7:T$126,">"&AJ98,T$7:T$126,"<="&AJ99),IFERROR(IF(torlesztes="Egyenlő tőke",IF(COUNT($AK$7:AK99)>$D$15,"",-$AK$5/$D$15),0),"")) -> -909090.9091 | AM99: -173028.6426 | AN99: 16363636.36 | AO99: =IF(torlesztes="Egyedi",-SUMIFS(U$7:U$126,T$7:T$126,">"&AJ98,T$7:T$126,"<="&AJ99),IFERROR(IF(torlesztes="Egyenlő tőke",IF(COUNT($AN$7:AN99)>$D$15,"",-$AK$5/$D$15),0),"")) -> -909090.9091 | AP99: -20846.82441 | AR99: 152181.8182 | AS99: 112960.3929 | AT99: 31
J100: FALSE | O100: 0 | P100: 0 | Q100: 0 | AA100: 2029-01-15 | AB100: 0 | AC100: 15454545.45 | AD100: -163415.9402 | AE100: -19688.6675 | AF100: 31 | AH100: 94 | AI100: 94 | AJ100: 2029-02-15 | AK100: 15454545.45 | AL100: =IF(torlesztes="Egyedi",-SUMIFS(U$7:U$126,T$7:T$126,">"&AJ99,T$7:T$126,"<="&AJ100),IFERROR(IF(torlesztes="Egyenlő tőke",IF(COUNT($AK$7:AK100)>$D$15,"",-$AK$5/$D$15),0),"")) -> -909090.9091 | AM100: -163415.9402 | AN100: 15454545.45 | AO100: =IF(torlesztes="Egyedi",-SUMIFS(U$7:U$126,T$7:T$126,">"&AJ99,T$7:T$126,"<="&AJ100),IFERROR(IF(torlesztes="Egyenlő tőke",IF(COUNT($AN$7:AN100)>$D$15,"",-$AK$5/$D$15),0),"")) -> -909090.9091 | AP100: -19688.6675 | AR100: 143727.2727 | AS100: 106378.9759 | AT100: 31
J101: FALSE | O101: 0 | P101: 0 | Q101: 0 | AA101: 2029-02-15 | AB101: 0 | AC101: 14545454.55 | AD101: -138919.0535 | AE101: -16737.23537 | AF101: 28 | AH101: 95 | AI101: 95 | AJ101: 2029-03-15 | AK101: 14545454.55 | AL101: =IF(torlesztes="Egyedi",-SUMIFS(U$7:U$126,T$7:T$126,">"&AJ100,T$7:T$126,"<="&AJ101),IFERROR(IF(torlesztes="Egyenlő tőke",IF(COUNT($AK$7:AK101)>$D$15,"",-$AK$5/$D$15),0),"")) -> -909090.9091 | AM101: -138919.0535 | AN101: 14545454.55 | AO101: =IF(torlesztes="Egyedi",-SUMIFS(U$7:U$126,T$7:T$126,">"&AJ100,T$7:T$126,"<="&AJ101),IFERROR(IF(torlesztes="Egyenlő tőke",IF(COUNT($AN$7:AN101)>$D$15,"",-$AK$5/$D$15),0),"")) -> -909090.9091 | AP101: -16737.23537 | AR101: 122181.8182 | AS101: 90172.97511 | AT101: 28
J102: FALSE | O102: 0 | P102: 0 | Q102: 0 | AA102: 2029-03-15 | AB102: 0 | AC102: 13636363.64 | AD102: -144190.5355 | AE102: -17372.35367 | AF102: 31 | AH102: 96 | AI102: 96 | AJ102: 2029-04-15 | AK102: 13636363.64 | AL102: =IF(torlesztes="Egyedi",-SUMIFS(U$7:U$126,T$7:T$126,">"&AJ101,T$7:T$126,"<="&AJ102),IFERROR(IF(torlesztes="Egyenlő tőke",IF(COUNT($AK$7:AK102)>$D$15,"",-$AK$5/$D$15),0),"")) -> -909090.9091 | AM102: -144190.5355 | AN102: 13636363.64 | AO102: =IF(torlesztes="Egyedi",-SUMIFS(U$7:U$126,T$7:T$126,">"&AJ101,T$7:T$126,"<="&AJ102),IFERROR(IF(torlesztes="Egyenlő tőke",IF(COUNT($AN$7:AN102)>$D$15,"",-$AK$5/$D$15),0),"")) -> -909090.9091 | AP102: -17372.35367 | AR102: 126818.1818 | AS102: 93326.40406 | AT102: 31
J103: FALSE | O103: 0 | P103: =IF(AND(ISBLANK(L102),AH103<>1),0,IFERROR(-O103*piacikamat/365*(IF(ISBLANK(L103),$C$27,L103)-N103),"")) -> 0 | Q103: =IF(AND(ISBLANK(L102),AH103<>1),0,IFERROR(-O103*tenylegeskamat/365*(IF(ISBLANK(L103),$C$27,L103)-N103),"")) -> 0 | R103: =IFERROR(IF(ISBLANK(L103),$C$27,L103)-N103,"") ->  | AA103: 2029-04-15 | AB103: 0 | AC103: 12727272.73 | AD103: -130236.6127 | AE103: -15691.15816 | AF103: 30 | AH103: 97 | AI103: 97 | AJ103: 2029-05-15 | AK103: 12727272.73 | AL103: =IF(torlesztes="Egyedi",-SUMIFS(U$7:U$126,T$7:T$126,">"&AJ102,T$7:T$126,"<="&AJ103),IFERROR(IF(torlesztes="Egyenlő tőke",IF(COUNT($AK$7:AK103)>$D$15,"",-$AK$5/$D$15),0),"")) -> -909090.9091 | AM103: -130236.6127 | AN103: 12727272.73 | AO103: =IF(torlesztes="Egyedi",-SUMIFS(U$7:U$126,T$7:T$126,">"&AJ102,T$7:T$126,"<="&AJ103),IFERROR(IF(torlesztes="Egyenlő tőke",IF(COUNT($AN$7:AN103)>$D$15,"",-$AK$5/$D$15),0),"")) -> -909090.9091 | AP103: -15691.15816 | AR103: 114545.4545 | AS103: 84053.16373 | AT103: 30
J104: FALSE | O104: 0 | P104: 0 | Q104: 0 | AA104: 2029-05-15 | AB104: 0 | AC104: 11818181.82 | AD104: -124965.1308 | AE104: -15056.03985 | AF104: 31 | AH104: 98 | AI104: 98 | AJ104: =IF(OR(AJ103=$C$28,AJ103=""),"",IFERROR(IF(EDATE($C$27,(AH104-1)*12/$D$19)<=$C$28,EDATE($C$27,(AH104-1)*12/$D$19),$C$28),"")) -> 2029-06-15 | AK104: 11818181.82 | AL104: =IF(torlesztes="Egyedi",-SUMIFS(U$7:U$126,T$7:T$126,">"&AJ103,T$7:T$126,"<="&AJ104),IFERROR(IF(torlesztes="Egyenlő tőke",IF(COUNT($AK$7:AK104)>$D$15,"",-$AK$5/$D$15),0),"")) -> -909090.9091 | AM104: =IF(torlesztes="Egyedi",SUMIFS(X$7:X$126,T$7:T$126,">"&AJ103,T$7:T$126,"<="&AJ104)+AD104,IFERROR(-AK104*piacikamat/365*(AJ104-AJ103),"")) -> -124965.1308 | AN104: 11818181.82 | AO104: =IF(torlesztes="Egyedi",-SUMIFS(U$7:U$126,T$7:T$126,">"&AJ103,T$7:T$126,"<="&AJ104),IFERROR(IF(torlesztes="Egyenlő tőke",IF(COUNT($AN$7:AN104)>$D$15,"",-$AK$5/$D$15),0),"")) -> -909090.9091 | AP104: =IF(torlesztes="Egyedi",SUMIFS(Y$7:Y$126,T$7:T$126,">"&AJ103,T$7:T$126,"<="&AJ104)+AE104,IFERROR(-AN104*tenylegeskamat/365*(AJ104-AJ103),"")) -> -15056.03985 | AR104: 109909.0909 | AS104: =IFERROR(AR104/POWER(1+($C$11+1%)/$D$19,AI104-1)/(1+($C$11+1%)/365*($AJ$7-$C$25)),"") -> 80419.80492 | AT104: 31
J105: FALSE | O105: 0 | P105: 0 | Q105: 0 | AA105: 2029-06-15 | AB105: 0 | AC105: 10909090.91 | AD105: -111631.3823 | AE105: -13449.56413 | AF105: 30 | AH105: 99 | AI105: 99 | AJ105: 2029-07-15 | AK105: 10909090.91 | AL105: =IF(torlesztes="Egyedi",-SUMIFS(U$7:U$126,T$7:T$126,">"&AJ104,T$7:T$126,"<="&AJ105),IFERROR(IF(torlesztes="Egyenlő tőke",IF(COUNT($AK$7:AK105)>$D$15,"",-$AK$5/$D$15),0),"")) -> -909090.9091 | AM105: -111631.3823 | AN105: 10909090.91 | AO105: =IF(torlesztes="Egyedi",-SUMIFS(U$7:U$126,T$7:T$126,">"&AJ104,T$7:T$126,"<="&AJ105),IFERROR(IF(torlesztes="Egyenlő tőke",IF(COUNT($AN$7:AN105)>$D$15,"",-$AK$5/$D$15),0),"")) -> -909090.9091 | AP105: -13449.56413 | AR105: 98181.81818 | AS105: 71633.08657 | AT105: 30
J106: FALSE | O106: 0 | P106: 0 | Q106: 0 | AA106: 2029-07-15 | AB106: 0 | AC106: 10000000 | AD106: -105739.726 | AE106: -12739.72603 | AF106: 31 | AH106: 100 | AI106: 100 | AJ106: 2029-08-15 | AK106: 10000000 | AL106: =IF(torlesztes="Egyedi",-SUMIFS(U$7:U$126,T$7:T$126,">"&AJ105,T$7:T$126,"<="&AJ106),IFERROR(IF(torlesztes="Egyenlő tőke",IF(COUNT($AK$7:AK106)>$D$15,"",-$AK$5/$D$15),0),"")) -> -909090.9091 | AM106: -105739.726 | AN106: 10000000 | AO106: =IF(torlesztes="Egyedi",-SUMIFS(U$7:U$126,T$7:T$126,">"&AJ105,T$7:T$126,"<="&AJ106),IFERROR(IF(torlesztes="Egyenlő tőke",IF(COUNT($AN$7:AN106)>$D$15,"",-$AK$5/$D$15),0),"")) -> -909090.9091 | AP106: -12739.72603 | AR106: 93000 | AS106: 67657.93488 | AT106: 31
J107: FALSE | O107: 0 | P107: 0 | Q107: 0 | AA107: 2029-08-15 | AB107: 0 | AC107: 9090909.091 | AD107: -96127.02366 | AE107: -11581.56912 | AF107: 31 | AH107: 101 | AI107: 101 | AJ107: 2029-09-15 | AK107: 9090909.091 | AL107: =IF(torlesztes="Egyedi",-SUMIFS(U$7:U$126,T$7:T$126,">"&AJ106,T$7:T$126,"<="&AJ107),IFERROR(IF(torlesztes="Egyenlő tőke",IF(COUNT($AK$7:AK107)>$D$15,"",-$AK$5/$D$15),0),"")) -> -909090.9091 | AM107: -96127.02366 | AN107: 9090909.091 | AO107: =IF(torlesztes="Egyedi",-SUMIFS(U$7:U$126,T$7:T$126,">"&AJ106,T$7:T$126,"<="&AJ107),IFERROR(IF(torlesztes="Egyenlő tőke",IF(COUNT($AN$7:AN107)>$D$15,"",-$AK$5/$D$15),0),"")) -> -909090.9091 | AP107: -11581.56912 | AR107: 84545.45455 | AS107: 61330.88723 | AT107: 31
J108: FALSE | O108: 0 | P108: 0 | Q108: 0 | AA108: 2029-09-15 | AB108: 0 | AC108: 8181818.182 | AD108: -83723.53674 | AE108: -10087.1731 | AF108: 30 | AH108: 102 | AI108: 102 | AJ108: 2029-10-15 | AK108: 8181818.182 | AL108: =IF(torlesztes="Egyedi",-SUMIFS(U$7:U$126,T$7:T$126,">"&AJ107,T$7:T$126,"<="&AJ108),IFERROR(IF(torlesztes="Egyenlő tőke",IF(COUNT($AK$7:AK108)>$D$15,"",-$AK$5/$D$15),0),"")) -> -909090.9091 | AM108: -83723.53674 | AN108: 8181818.182 | AO108: =IF(torlesztes="Egyedi",-SUMIFS(U$7:U$126,T$7:T$126,">"&AJ107,T$7:T$126,"<="&AJ108),IFERROR(IF(torlesztes="Egyenlő tőke",IF(COUNT($AN$7:AN108)>$D$15,"",-$AK$5/$D$15),0),"")) -> -909090.9091 | AP108: -10087.1731 | AR108: 73636.36364 | AS108: 53264.0901 | AT108: 30
J109: FALSE | O109: 0 | P109: 0 | Q109: 0 | AA109: 2029-10-15 | AB109: 0 | AC109: 7272727.273 | AD109: -76901.61893 | AE109: -9265.255293 | AF109: 31 | AH109: 103 | AI109: 103 | AJ109: 2029-11-15 | AK109: 7272727.273 | AL109: =IF(torlesztes="Egyedi",-SUMIFS(U$7:U$126,T$7:T$126,">"&AJ108,T$7:T$126,"<="&AJ109),IFERROR(IF(torlesztes="Egyenlő tőke",IF(COUNT($AK$7:AK109)>$D$15,"",-$AK$5/$D$15),0),"")) -> -909090.9091 | AM109: -76901.61893 | AN109: 7272727.273 | AO109: =IF(torlesztes="Egyedi",-SUMIFS(U$7:U$126,T$7:T$126,">"&AJ108,T$7:T$126,"<="&AJ109),IFERROR(IF(torlesztes="Egyenlő tőke",IF(COUNT($AN$7:AN109)>$D$15,"",-$AK$5/$D$15),0),"")) -> -909090.9091 | AP109: -9265.255293 | AR109: 67636.36364 | AS109: 48783.7997 | AT109: 31
J110: FALSE | O110: 0 | P110: 0 | Q110: 0 | AA110: 2029-11-15 | AB110: 0 | AC110: 6363636.364 | AD110: -65118.30635 | AE110: -7845.579078 | AF110: 30 | AH110: 104 | AI110: 104 | AJ110: 2029-12-15 | AK110: 6363636.364 | AL110: =IF(torlesztes="Egyedi",-SUMIFS(U$7:U$126,T$7:T$126,">"&AJ109,T$7:T$126,"<="&AJ110),IFERROR(IF(torlesztes="Egyenlő tőke",IF(COUNT($AK$7:AK110)>$D$15,"",-$AK$5/$D$15),0),"")) -> -909090.9091 | AM110: -65118.30635 | AN110: 6363636.364 | AO110: =IF(torlesztes="Egyedi",-SUMIFS(U$7:U$126,T$7:T$126,">"&AJ109,T$7:T$126,"<="&AJ110),IFERROR(IF(torlesztes="Egyenlő tőke",IF(COUNT($AN$7:AN110)>$D$15,"",-$AK$5/$D$15),0),"")) -> -909090.9091 | AP110: -7845.579078 | AR110: 57272.72727 | AS110: 41190.44014 | AT110: 30
J111: FALSE | O111: =IF(ISBLANK(L110),0,M110+O110) -> 0 | P111: 0 | Q111: 0 | X111: =IFERROR(-W111*piacikamat/365*(T111-V111),"") ->  | Y111: =IFERROR(-W111*tenylegeskamat/365*(T111-V111),"") ->  | AA111: 2029-12-15 | AB111: 0 | AC111: 5454545.455 | AD111: =IFERROR(-(AC111-AB111)*piacikamat/365*(AJ111-AA111),0) -> -57676.2142 | AE111: =IFERROR(-(AC111-AB111)*tenylegeskamat/365*(AJ111-AA111),0) -> -6948.941469 | AF111: =IFERROR(AJ111-AA111,"") -> 31 | AH111: 105 | AI111: =IF(COUNT(AJ111)=1,AI110+1,"") -> 105 | AJ111: 2030-01-15 | AK111: =+IF(COUNT(AK110)<>0,SUM(AK110:AL110)*(1-J111),"") -> 5454545.455 | AL111: =IF(torlesztes="Egyedi",-SUMIFS(U$7:U$126,T$7:T$126,">"&AJ110,T$7:T$126,"<="&AJ111),IFERROR(IF(torlesztes="Egyenlő tőke",IF(COUNT($AK$7:AK111)>$D$15,"",-$AK$5/$D$15),0),"")) -> -909090.9091 | AM111: -57676.2142 | AN111: 5454545.455 | AO111: =IF(torlesztes="Egyedi",-SUMIFS(U$7:U$126,T$7:T$126,">"&AJ110,T$7:T$126,"<="&AJ111),IFERROR(IF(torlesztes="Egyenlő tőke",IF(COUNT($AN$7:AN111)>$D$15,"",-$AK$5/$D$15),0),"")) -> -909090.9091 | AP111: -6948.941469 | AR111: =IFERROR(MAX((ABS(AM111)-ABS(AP111)),0),"") -> 50727.27273 | AS111: 36378.37344 | AT111: =IFERROR(AJ111-AJ110,"") -> 31
J112: FALSE | O112: 0 | P112: 0 | Q112: 0 | AA112: 2030-01-15 | AB112: 0 | AC112: 4545454.545 | AD112: -48063.51183 | AE112: -5790.784558 | AF112: 31 | AH112: 106 | AI112: 106 | AJ112: 2030-02-15 | AK112: 4545454.545 | AL112: =IF(torlesztes="Egyedi",-SUMIFS(U$7:U$126,T$7:T$126,">"&AJ111,T$7:T$126,"<="&AJ112),IFERROR(IF(torlesztes="Egyenlő tőke",IF(COUNT($AK$7:AK112)>$D$15,"",-$AK$5/$D$15),0),"")) -> -909090.9091 | AM112: -48063.51183 | AN112: 4545454.545 | AO112: =IF(torlesztes="Egyedi",-SUMIFS(U$7:U$126,T$7:T$126,">"&AJ111,T$7:T$126,"<="&AJ112),IFERROR(IF(torlesztes="Egyenlő tőke",IF(COUNT($AN$7:AN112)>$D$15,"",-$AK$5/$D$15),0),"")) -> -909090.9091 | AP112: -5790.784558 | AR112: 42272.72727 | AS112: 30228.40454 | AT112: 31
J113: FALSE | O113: 0 | P113: 0 | Q113: 0 | AA113: 2030-02-15 | AB113: 0 | AC113: 3636363.636 | AD113: -34729.76339 | AE113: -4184.308842 | AF113: 28 | AH113: 107 | AI113: 107 | AJ113: 2030-03-15 | AK113: 3636363.636 | AL113: =IF(torlesztes="Egyedi",-SUMIFS(U$7:U$126,T$7:T$126,">"&AJ112,T$7:T$126,"<="&AJ113),IFERROR(IF(torlesztes="Egyenlő tőke",IF(COUNT($AK$7:AK113)>$D$15,"",-$AK$5/$D$15),0),"")) -> -909090.9091 | AM113: -34729.76339 | AN113: 3636363.636 | AO113: =IF(torlesztes="Egyedi",-SUMIFS(U$7:U$126,T$7:T$126,">"&AJ112,T$7:T$126,"<="&AJ113),IFERROR(IF(torlesztes="Egyenlő tőke",IF(COUNT($AN$7:AN113)>$D$15,"",-$AK$5/$D$15),0),"")) -> -909090.9091 | AP113: -4184.308842 | AR113: 30545.45455 | AS113: 21779.843 | AT113: 28
J114: FALSE | O114: 0 | P114: 0 | Q114: 0 | AA114: 2030-03-15 | AB114: 0 | AC114: 2727272.727 | AD114: -28838.1071 | AE114: -3474.470735 | AF114: 31 | AH114: 108 | AI114: 108 | AJ114: 2030-04-15 | AK114: 2727272.727 | AL114: =IF(torlesztes="Egyedi",-SUMIFS(U$7:U$126,T$7:T$126,">"&AJ113,T$7:T$126,"<="&AJ114),IFERROR(IF(torlesztes="Egyenlő tőke",IF(COUNT($AK$7:AK114)>$D$15,"",-$AK$5/$D$15),0),"")) -> -909090.9091 | AM114: -28838.1071 | AN114: 2727272.727 | AO114: =IF(torlesztes="Egyedi",-SUMIFS(U$7:U$126,T$7:T$126,">"&AJ113,T$7:T$126,"<="&AJ114),IFERROR(IF(torlesztes="Egyenlő tőke",IF(COUNT($AN$7:AN114)>$D$15,"",-$AK$5/$D$15),0),"")) -> -909090.9091 | AP114: -3474.470735 | AR114: 25363.63636 | AS114: 18033.20275 | AT114: 31
J115: FALSE | O115: 0 | P115: 0 | Q115: 0 | AA115: 2030-04-15 | AB115: 0 | AC115: 1818181.818 | AD115: -18605.23039 | AE115: -2241.594022 | AF115: 30 | AH115: 109 | AI115: 109 | AJ115: 2030-05-15 | AK115: 1818181.818 | AL115: =IF(torlesztes="Egyedi",-SUMIFS(U$7:U$126,T$7:T$126,">"&AJ114,T$7:T$126,"<="&AJ115),IFERROR(IF(torlesztes="Egyenlő tőke",IF(COUNT($AK$7:AK115)>$D$15,"",-$AK$5/$D$15),0),"")) -> -909090.9091 | AM115: -18605.23039 | AN115: 1818181.818 | AO115: =IF(torlesztes="Egyedi",-SUMIFS(U$7:U$126,T$7:T$126,">"&AJ114,T$7:T$126,"<="&AJ115),IFERROR(IF(torlesztes="Egyenlő tőke",IF(COUNT($AN$7:AN115)>$D$15,"",-$AK$5/$D$15),0),"")) -> -909090.9091 | AP115: -2241.594022 | AR115: 16363.63636 | AS115: 11600.97156 | AT115: 30
J116: FALSE | O116: 0 | P116: 0 | Q116: 0 | AA116: 2030-05-15 | AB116: 0 | AC116: 909090.9091 | AD116: -4651.307597 | AE116: -560.3985056 | AF116: 15 | AH116: 110 | AI116: 110 | AJ116: 2030-05-30 | AK116: 909090.9091 | AL116: =IF(torlesztes="Egyedi",-SUMIFS(U$7:U$126,T$7:T$126,">"&AJ115,T$7:T$126,"<="&AJ116),IFERROR(IF(torlesztes="Egyenlő tőke",IF(COUNT($AK$7:AK116)>$D$15,"",-$AK$5/$D$15),0),"")) -> -909090.9091 | AM116: -4651.307597 | AN116: 909090.9091 | AO116: =IF(torlesztes="Egyedi",-SUMIFS(U$7:U$126,T$7:T$126,">"&AJ115,T$7:T$126,"<="&AJ116),IFERROR(IF(torlesztes="Egyenlő tőke",IF(COUNT($AN$7:AN116)>$D$15,"",-$AK$5/$D$15),0),"")) -> -909090.9091 | AP116: -560.3985056 | AR116: 4090.909091 | AS116: 2891.928596 | AT116: 15
J117: TRUE | O117: 0 | P117: 0 | Q117: 0 | AA117: 2030-05-30 | AB117: 0 | AC117: 0 | AD117: 0 | AE117: 0 | AH117: 111 | AK117: 0 | AL117: =IF(torlesztes="Egyedi",-SUMIFS(U$7:U$126,T$7:T$126,">"&AJ116,T$7:T$126,"<="&AJ117),IFERROR(IF(torlesztes="Egyenlő tőke",IF(COUNT($AK$7:AK117)>$D$15,"",-$AK$5/$D$15),0),"")) ->  | AN117: 0 | AO117: =IF(torlesztes="Egyedi",-SUMIFS(U$7:U$126,T$7:T$126,">"&AJ116,T$7:T$126,"<="&AJ117),IFERROR(IF(torlesztes="Egyenlő tőke",IF(COUNT($AN$7:AN117)>$D$15,"",-$AK$5/$D$15),0),"")) -> 
J118: TRUE | O118: 0 | P118: 0 | Q118: 0 | AA118: 00:00:00 | AB118: 0 | AC118: 0 | AD118: 0 | AE118: 0 | AH118: 112 | AK118: 0 | AL118: =IF(torlesztes="Egyedi",-SUMIFS(U$7:U$126,T$7:T$126,">"&AJ117,T$7:T$126,"<="&AJ118),IFERROR(IF(torlesztes="Egyenlő tőke",IF(COUNT($AK$7:AK118)>$D$15,"",-$AK$5/$D$15),0),"")) ->  | AN118: 0 | AO118: =IF(torlesztes="Egyedi",-SUMIFS(U$7:U$126,T$7:T$126,">"&AJ117,T$7:T$126,"<="&AJ118),IFERROR(IF(torlesztes="Egyenlő tőke",IF(COUNT($AN$7:AN118)>$D$15,"",-$AK$5/$D$15),0),"")) -> 
J119: TRUE | O119: 0 | P119: 0 | Q119: 0 | AA119: 00:00:00 | AB119: 0 | AC119: 0 | AD119: 0 | AE119: 0 | AH119: 113 | AK119: 0 | AL119: =IF(torlesztes="Egyedi",-SUMIFS(U$7:U$126,T$7:T$126,">"&AJ118,T$7:T$126,"<="&AJ119),IFERROR(IF(torlesztes="Egyenlő tőke",IF(COUNT($AK$7:AK119)>$D$15,"",-$AK$5/$D$15),0),"")) ->  | AN119: 0 | AO119: =IF(torlesztes="Egyedi",-SUMIFS(U$7:U$126,T$7:T$126,">"&AJ118,T$7:T$126,"<="&AJ119),IFERROR(IF(torlesztes="Egyenlő tőke",IF(COUNT($AN$7:AN119)>$D$15,"",-$AK$5/$D$15),0),"")) -> 
J120: TRUE | O120: 0 | P120: 0 | Q120: 0 | AA120: 00:00:00 | AB120: 0 | AC120: 0 | AD120: 0 | AE120: 0 | AH120: 114 | AK120: 0 | AL120: =IF(torlesztes="Egyedi",-SUMIFS(U$7:U$126,T$7:T$126,">"&AJ119,T$7:T$126,"<="&AJ120),IFERROR(IF(torlesztes="Egyenlő tőke",IF(COUNT($AK$7:AK120)>$D$15,"",-$AK$5/$D$15),0),"")) ->  | AN120: 0 | AO120: =IF(torlesztes="Egyedi",-SUMIFS(U$7:U$126,T$7:T$126,">"&AJ119,T$7:T$126,"<="&AJ120),IFERROR(IF(torlesztes="Egyenlő tőke",IF(COUNT($AN$7:AN120)>$D$15,"",-$AK$5/$D$15),0),"")) -> 
J121: TRUE | O121: 0 | P121: 0 | Q121: 0 | AA121: 00:00:00 | AB121: 0 | AC121: 0 | AD121: 0 | AE121: 0 | AH121: 115 | AK121: 0 | AL121: =IF(torlesztes="Egyedi",-SUMIFS(U$7:U$126,T$7:T$126,">"&AJ120,T$7:T$126,"<="&AJ121),IFERROR(IF(torlesztes="Egyenlő tőke",IF(COUNT($AK$7:AK121)>$D$15,"",-$AK$5/$D$15),0),"")) ->  | AN121: 0 | AO121: =IF(torlesztes="Egyedi",-SUMIFS(U$7:U$126,T$7:T$126,">"&AJ120,T$7:T$126,"<="&AJ121),IFERROR(IF(torlesztes="Egyenlő tőke",IF(COUNT($AN$7:AN121)>$D$15,"",-$AK$5/$D$15),0),"")) -> 
J122: TRUE | O122: 0 | P122: 0 | Q122: 0 | AA122: 00:00:00 | AB122: 0 | AC122: 0 | AD122: 0 | AE122: 0 | AH122: 116 | AK122: 0 | AL122: =IF(torlesztes="Egyedi",-SUMIFS(U$7:U$126,T$7:T$126,">"&AJ121,T$7:T$126,"<="&AJ122),IFERROR(IF(torlesztes="Egyenlő tőke",IF(COUNT($AK$7:AK122)>$D$15,"",-$AK$5/$D$15),0),"")) ->  | AN122: 0 | AO122: =IF(torlesztes="Egyedi",-SUMIFS(U$7:U$126,T$7:T$126,">"&AJ121,T$7:T$126,"<="&AJ122),IFERROR(IF(torlesztes="Egyenlő tőke",IF(COUNT($AN$7:AN122)>$D$15,"",-$AK$5/$D$15),0),"")) -> 
J123: TRUE | O123: 0 | P123: 0 | Q123: 0 | AA123: 00:00:00 | AB123: 0 | AC123: 0 | AD123: 0 | AE123: 0 | AH123: 117 | AK123: 0 | AL123: =IF(torlesztes="Egyedi",-SUMIFS(U$7:U$126,T$7:T$126,">"&AJ122,T$7:T$126,"<="&AJ123),IFERROR(IF(torlesztes="Egyenlő tőke",IF(COUNT($AK$7:AK123)>$D$15,"",-$AK$5/$D$15),0),"")) ->  | AN123: 0 | AO123: =IF(torlesztes="Egyedi",-SUMIFS(U$7:U$126,T$7:T$126,">"&AJ122,T$7:T$126,"<="&AJ123),IFERROR(IF(torlesztes="Egyenlő tőke",IF(COUNT($AN$7:AN123)>$D$15,"",-$AK$5/$D$15),0),"")) -> 
J124: TRUE | O124: 0 | P124: 0 | Q124: 0 | AA124: 00:00:00 | AB124: 0 | AC124: 0 | AD124: 0 | AE124: 0 | AH124: 118 | AK124: 0 | AL124: =IF(torlesztes="Egyedi",-SUMIFS(U$7:U$126,T$7:T$126,">"&AJ123,T$7:T$126,"<="&AJ124),IFERROR(IF(torlesztes="Egyenlő tőke",IF(COUNT($AK$7:AK124)>$D$15,"",-$AK$5/$D$15),0),"")) ->  | AN124: 0 | AO124: =IF(torlesztes="Egyedi",-SUMIFS(U$7:U$126,T$7:T$126,">"&AJ123,T$7:T$126,"<="&AJ124),IFERROR(IF(torlesztes="Egyenlő tőke",IF(COUNT($AN$7:AN124)>$D$15,"",-$AK$5/$D$15),0),"")) -> 
J125: TRUE | O125: 0 | P125: 0 | Q125: 0 | AA125: 00:00:00 | AB125: 0 | AC125: 0 | AD125: 0 | AE125: 0 | AH125: 119 | AK125: 0 | AL125: =IF(torlesztes="Egyedi",-SUMIFS(U$7:U$126,T$7:T$126,">"&AJ124,T$7:T$126,"<="&AJ125),IFERROR(IF(torlesztes="Egyenlő tőke",IF(COUNT($AK$7:AK125)>$D$15,"",-$AK$5/$D$15),0),"")) ->  | AN125: 0 | AO125: =IF(torlesztes="Egyedi",-SUMIFS(U$7:U$126,T$7:T$126,">"&AJ124,T$7:T$126,"<="&AJ125),IFERROR(IF(torlesztes="Egyenlő tőke",IF(COUNT($AN$7:AN125)>$D$15,"",-$AK$5/$D$15),0),"")) -> 
J126: TRUE | O126: 0 | P126: 0 | Q126: 0 | AA126: 00:00:00 | AB126: 0 | AC126: 0 | AD126: 0 | AE126: 0 | AH126: 120 | AK126: 0 | AL126: =IF(torlesztes="Egyedi",-SUMIFS(U$7:U$126,T$7:T$126,">"&AJ125,T$7:T$126,"<="&AJ126),IFERROR(IF(torlesztes="Egyenlő tőke",IF(COUNT($AK$7:AK126)>$D$15,"",-$AK$5/$D$15),0),"")) ->  | AN126: 0 | AO126: =IF(torlesztes="Egyedi",-SUMIFS(U$7:U$126,T$7:T$126,">"&AJ125,T$7:T$126,"<="&AJ126),IFERROR(IF(torlesztes="Egyenlő tőke",IF(COUNT($AN$7:AN126)>$D$15,"",-$AK$5/$D$15),0),"")) -> 

Sheet Szamitasok (hidden)
A1: Kizárók és KO-k
D2: Váll. Méret | E2: Mezőgazdasági | F2: Halászat/akvakultúra
A3: Szorzó értéke | D3: =Tamogatastartalom!C21 -> Mikró/Kis
A4: =PRODUCT(C4:W4) -> 1 | B4: általános | H4: 1
A5: =PRODUCT(E5:F5) -> 0 | B5: mezőgazdasági | E5: =IF(Tamogatastartalom!C22="Mezőgazdasági",1,0) -> 0 | H5: 1
A6: =PRODUCT(E6:F6) -> 0 | B6: halászati | F6: =IF(Tamogatastartalom!C22="Halászati",1,0) -> 0 | H6: 1
A7: 14-es cikk
A8: R szorzó értéke
A9: Elszámolható ktg-ek EUR-ban | B9: =Tamogatastartalom!C23/IF(Tamogatastartalom!C9<>"EUR",arfolyam,1) -> 388888.8889
A10: A Elszámolható költségek | B10: =IF((B9-C10)>0,C10,B9) -> 388888.8889 | C10: 50000000
A11: B Elszámolható költségek | B11: =IF(B10<C10,0,IF(B9-C11<0,B9-C10,C10)) -> 0 | C11: 100000000
A12: C elszámolható költségek | B12: nincs!
A13: KKV bónusz | B13: =IF(D3="Mikró/Kis",0.2,IF(D3="Közepes",0.1,0))*IF(B9<50*10^6,1,0) -> 0.2
A14: Kaphat? | B14: =IF(B15>0,1,0) -> 1
A15: Alap intenzitás | B15: =VLOOKUP(Tamogatastartalom!C36,Adatok!A21:B216,2,FALSE)+IF(Tamogatastartalom!C36="Közép_Magyarország",VLOOKUP(Tamogatastartalom!C37,Adatok!A21:'Adatok'!B216,2,FALSE)) -> 0.35
A16: R szorzó értéke a támogatási térkép alapján | B16: =(B15+B13)*B14 -> 0.55
A17: Max. TT (EUR) | B17: =VLOOKUP(B15,Adatok!D12:E16,2,FALSE)*10^6 -> 26250000
A18: 17-es cikk
A19: Vállalatméret-szorzó | B19: =IF(D3="Nagy",0,IF(D3="Mikró/Kis",0.2,0.1)) -> 0.2
A20: HUF érték
A21: Elszámolható ktg-ek HUF-ban | B21: =IF(Tamogatastartalom!C9="EUR",Tamogatastartalom!C23*arfolyam,Tamogatastartalom!C23) -> 140000000
A22: Hitel/támogatástartalom arány
A23: Hitelösszeg | B23: =Tamogatastartalom!C24 -> 100000000
A24: Támogatástartalom a futamidő alatt | B24: =Tamogatastartalom!AR5 -> 60281181.82
A25: Hitelösszeg/támogatástartalom | B25: =B23/B24 -> 1.658892493

Sheet Adatok (hidden)
A1: Felárak | M1: Segédszámítások
D2: Piaci referencia | J2: Refin kamatok | M2: Törlesztés | P2: Törlesztésgyakoriság | S2: Select | U2: Select
F3: Fedezettség | M3: Egyenlő összeg | N3: 1 | P3: Havi | Q3: 12 | S3: Beruházási hitel | U3: Beruházási hitel
F4: Magas | G4: Általános | H4: Alacsony | J4: Min 1 | K4: =refkam-3.5% -> -0.0105 | M4: Egyenlő tőke | N4: 2 | P4: Negyedéves | Q4: 4 | S4: Forgóeszközhitel | U4: Lízing
D5: Hitelminősítés | E5: Kiváló | F5: 60 | G5: 75 | H5: 100 | J5: Min2 | K5: 0.001 | M5: Egyedi | N5: 0 | P5: Féléves | Q5: 2 | S5: Lízing
E6: Jó | F6: 75 | G6: 100 | H6: 220 | J6: Tényleges min | K6: =MAX(K4:K5) -> 0.001
E7: Kielégítő | F7: 100 | G7: 220 | H7: 400 | J7: Max | K7: =refkammin+4% -> 0.041 | M7: Annuitás
E8: Gyenge | F8: 220 | G8: 400 | H8: 650
E9: Rossz | F9: 400 | G9: 650 | H9: 1000
A10: Regionális támogatási intenzitások
B11: Nagyvállalat | D11: Intenzitás | E11: MAX Támogatástartalom (mio EUR)
A12: Select | B12: 0 | D12: 0.5 | E12: 37.5
A13: Dél-Alföld | B13: 0.5 | D13: 0.35 | E13: 26.25
A14: Dél-Dunántúl | B14: 0.5 | D14: 0.25 | E14: 18.75
A15: Észak-Alföld | B15: 0.5 | D15: 0.2 | E15: 15
A16: Észak-Magyarország | B16: 0.5 | D16: 0 | E16: 0
A17: Közép-Dunántúl | B17: 0.35
A18: Közép_Magyarország | B18: 0
A19: Nyugat-Dunántúl | B19: 0.25
B20: 14-es cikk
A21: Select | B21: 0
A22: Budapest | B22: 0
A23: Abony | B23: 0.35
A24: Acsa | B24: 0
A25: Albertirsa | B25: 0
A26: Alsónémedi | B26: 0.35
A27: Apaj | B27: 0
A28: Áporka | B28: 0.35
A29: Aszód | B29: 0.35
A30: Bag | B30: 0.35
A31: Bénye | B31: 0
A32: Bernecebaráti | B32: 0.35
A33: Biatorbágy | B33: 0
A34: Budajenő | B34: 0
A35: Budakalász | B35: 0
A36: Budakeszi | B36: 0
A37: Budaörs | B37: 0
A38: Budapest | B38: 0
A39: Bugyi | B39: 0
A40: Cegléd | B40: 0.35
A41: Ceglédbercel | B41: 0
A42: Csemő | B42: 0.35
A43: Csévharaszt | B43: 0
A44: Csobánka | B44: 0
A45: Csomád | B45: 0
A46: Csömör | B46: 0
A47: Csörög | B47: 0
A48: Csővár | B48: 0
A49: Dabas | B49: 0.35
A50: Dánszentmiklós | B50: 0
A51: Dány | B51: 0
A52: Délegyháza | B52: 0
A53: Diósd | B53: 0
A54: Domony | B54: 0.35
A55: Dömösd | B55: 0
A56: Dunabogdány | B56: 0
A57: Dunaharaszti | B57: 0.35
A58: Dunakeszi | B58: 0
A59: Dunavarsány | B59: 0
A60: Ecser | B60: 0.35
A61: Érd | B61: 0.35
A62: Erdőkertes | B62: 0
A63: Farmos | B63: 0.35
A64: Felsőpakony | B64: 0.35
A65: Fót | B65: 0
A66: Galagyörk | B66: 0
A67: Galahévíz | B67: 0
A68: Galamácsa | B68: 0
A69: Gomba | B69: 0
A70: Göd | B70: 0.35
A71: Gödöllő | B71: 0.35
A72: Gyál | B72: 0.35
A73: Gyömörő | B73: 0
A74: Halásztelek | B74: 0.35
A75: Herceghalom | B75: 0
A76: Hernád | B76: 0
A77: Hévizgyörk | B77: 0
A78: Iklad | B78: 0.35
A79: Inárcs | B79: 0
A80: Ipolydamásd | B80: 0.35
A81: Ipolytölgyes | B81: 0.35
A82: Isaszeg | B82: 0
A83: Jászkarajenő | B83: 0.35
A84: Kakucs | B84: 0
A85: Kartal | B85: 0.35
A86: Káva | B86: 0
A87: Kemence | B87: 0.35
A88: Kerepes | B88: 0
A89: Kiskunlacháza | B89: 0.35
A90: Kismaros | B90: 0
A91: Kisnémedi | B91: 0.35
A92: Kisoroszi | B92: 0
A93: Kistarcsa | B93: 0
A94: Kocsér | B94: 0.35
A95: Kóka | B95: 0
A96: Kosd | B96: 0
A97: Kóspallag | B97: 0.35
A98: Kőröstételen | B98: 0
A99: Leányfalu | B99: 0
A100: Letkés | B100: 0.35
A101: Lórév | B101: 0.35
A102: Maglód | B102: 0.35
A103: Majosháza | B103: 0
A104: Makád | B104: 0.35
A105: Márianosztra | B105: 0.35
A106: Mende | B106: 0
A107: Mikebuda | B107: 0.35
A108: Mogyoród | B108: 0
A109: Monor | B109: 0.35
A110: Nagybörzsöny | B110: 0.35
A111: Nagykáta | B111: 0.35
A112: Nagykovácsi | B112: 0
A113: Nagykőrös | B113: 0.35
A114: Nagymaros | B114: 0
A115: Nagytarcsa | B115: 0.35
A116: Nyáregyháza | B116: 0
A117: Nyársapát | B117: 0.35
A118: Ócsa | B118: 0.35
A119: Őrbottyán | B119: 0
A120: Örkény | B120: 0.35
A121: Pánd | B121: 0
A122: Páty | B122: 0
A123: Pécel | B123: 0.35
A124: Penc | B124: 0
A125: Perbál | B125: 0
A126: Perőcsény | B126: 0.35
A127: Péteri | B127: 0.35
A128: Pilis | B128: 0
A129: Pilisborosjenő | B129: 0
A130: Piliscsaba | B130: 0.2
A131: Pilisjászfalu | B131: 0.2
A132: Pilisszántó | B132: 0
A133: Pilisszentiván | B133: 0
A134: Pilisszentkereszt | B134: 0
A135: Pilisszentlászló | B135: 0
A136: Pilisvörösvár | B136: 0
A137: Pócsmegyer | B137: 0
A138: Pomáz | B138: 0
A139: Pusztavacs | B139: 0
A140: Pusztazámor | B140: 0
A141: Püspökhatvan | B141: 0.35
A142: Püspökszilágy | B142: 0.35
A143: Ráckeve | B143: 0.35
A144: Rád | B144: 0
A145: Remeteszőlős | B145: 0
A146: Solymár | B146: 0
A147: Sóskút | B147: 0
A148: Sülysáp | B148: 0
A149: Szada | B149: 0
A150: Százhalombatta | B150: 0
A151: Szentendre | B151: 0
A152: Szentmártonkáta | B152: 0.35
A153: Szentlőrinckáta | B153: 0
A154: Szigetbecse | B154: 0.35
A155: Szigetcsép | B155: 0
A156: Szigethalom | B156: 0
A157: Szigetmonostor | B157: 0
A158: Szigetszentmárton | B158: 0
A159: Szigetszentmiklós | B159: 0.35
A160: Szigetújfalu | B160: 0
A161: Szob | B161: 0.35
A162: Szokolya | B162: 0.35
A163: Sződ | B163: 0
A164: Sződliget | B164: 0.35
A165: Táborfalva | B165: 0.35
A166: Tahitótfalu | B166: 0
A167: Taksony | B167: 0
A168: Tápióbicske | B168: 0.35
A169: Tápiógyörgye | B169: 0.35
A170: Tápióság | B170: 0.35
A171: Tápiószecső | B171: 0
A172: Tápiószele | B172: 0.35
A173: Tápiószentmárton | B173: 0.35
A174: Tápiószőlős | B174: 0.35
A175: Tárnok | B175: 0
A176: Tatárszentgyörgy | B176: 0.35
A177: Telki | B177: 0
A178: Tésa | B178: 0.35
A179: Tinnye | B179: 0
A180: Tóalmás | B180: 0
A181: Tök | B181: 0
A182: Tököl | B182: 0
A183: Törökbálint | B183: 0
A184: Törtel | B184: 0.35
A185: Tura | B185: 0.35
A186: Újhartyán | B186: 0.35
A187: Újlengyel | B187: 0
A188: Újszilvás | B188: 0.35
A189: Úri | B189: 0
A190: Üllő | B190: 0.35
A191: Üröm | B191: 0
A192: Vác | B192: 0.35
A193: Vácduka | B193: 0
A194: Vácegres | B194: 0
A195: Váchartyán | B195: 0
A196: Váckisújfalu | B196: 0.35
A197: Vácrátót | B197: 0
A198: Vácaszentlászló | B198: 0
A199: Valkó | B199: 0.35
A200: Vámosmikola | B200: 0.35
... 16 more rows
